Workbook

Sheet Indice
B1: Sociedad: | C1: BIEDERMANN PUBLICIDAD S.A.
S2: 1 | T2: Enero
S3: 2 | T3: Febrero
S4: 3 | T4: Marzo
S5: 4 | T5: Abril
A6: Fecha Presentación: | B6: 2020-12-31 | S6: 5 | T6: Mayo
S7: 6 | T7: Junio
S8: 7 | T8: Julio
C9: INDICE | D9: REF. | S9: 8 | T9: Agosto
B10: Informacion General | S10: 9 | T10: Septiembre
C11: Descripción de la naturaleza y del negocio de la Sociedad | D11: Nota 1 | S11: 10 | T11: Octubre
C12: Resumen de las principales políticas contables | D12: Nota 2 | S12: 11 | T12: Noviembre
B13: Balance General | D13: BG | S13: 12 | T13: Diciembre
C14: Efectivo y equivalente de efectivo | D14: Nota 3
C15: Inversiones temporales | D15: Nota 4
C16: Cuentas por cobrar comerciales | D16: Nota 5
C17: Otros créditos | D17: Nota 6
C18: Cuentas por cobrar comerciales | D18: Nota 5
C19: Inventarios | D19: Nota 7
C20: Inversión en asociadas | D20: Nota 8
C21: Propiedades, planta y equipo | D21: Nota 9
C22: Activos disponibles para la venta | D22: Nota 10
C23: Activos intangibles | D23: Nota 11
C24: Goodwill | D24: Nota 12
C25: Cuentas por pagar comerciales | D25: Nota 13
C26: Préstamos a corto plazo | D26: Nota 14
C27: Porción corriente de la deuda a largo plazo | D27: Nota 15
C28: Remuneraciones y cargas sociales a pagar | D28: Nota 16
C29: Impuestos a pagar | D29: Nota 17
C30: Provisiones | D30: Nota 18
C31: Otros pasivos corrientes | D31: Nota 19
C32: Prestamos a largo plazo | D32: Nota 14
C33: Otros pasivos no corrientes | D33: Nota 19
C34: Capital integrado | D34: Nota 20
C35: Reserva de revalúo | D35: Nota 21
C36: Reserva legal | D36: Nota 21
C37: Reservas estatutarias | D37: Nota 21
C38: Reservas facultativas | D38: Nota 21
C39: Diferencia transitoria por conversión | D39: Nota 22
C40: Resultados acumulados | D40: Nota 23
C41: Interés minoritario | D41: Nota 24
B42: Estado de Resultados | D42: ER
C43: Ventas | D43: Nota 25
C44: Costo de ventas | D44: Nota 26
C45: Gastos de ventas | D45: Nota 27
C46: Gastos administrativos | D46: Nota 27
C47: Otros ingresos y gastos operativos | D47: Nota 28
C48: Ingresos financieros - neto | D48: Nota 29
C49: Gastos financieros - neto | D49: Nota 29
C50: Resultado de inversiones en asociadas | D50: Nota 30
C51: Resultado participación minoritaria | D51: Nota 31
C52: Impuesto a la renta | D52: Nota 32
C53: Resultado extraordinario neto de impuesto a la renta | D53: Nota 33
C54: Resultado sobre actividades discontinuadas neto de impuesto a la renta | D54: Nota 34
C55: Utilidad/(Pérdida) neta del año | D55: Nota 35
C56: Utilidad neta por acción ordinaria | D56: Nota 35
B57: Estado de Evolución del Patrimonio Neto | D57: EVPN
B58: Estado de Flujos de Efectivo | D58: EFE
B59: Otras Notas de los Estados Financieros
C60: Activos gravados | D60: Nota 36
C61: Contingencias y compromisos | D61: Nota 37
C62: Impuesto diferido | D62: Nota 38
C63: Hechos posteriores | D63: Nota 39
C64: Saldos y transacciones con partes relacionadas | D64: Nota 40

Sheet BG
D1: =Indice!C1 -> BIEDERMANN PUBLICIDAD S.A. | E1: Indice
A7: BALANCE GENERAL
A8: =IFERROR(IF(Indice!B6="","Al dia... de mes… de año 2XX2…","Al "&DAY(Indice!B6)&" de "&VLOOKUP(MONTH(Indice!B6),Indice!S:T,2,0)&" de "&YEAR(Indice!B6)),"Al dia... de mes… de año 2XX2…") -> Al 31 de Diciembre de 2020
A9: (En miles de guaraníes)
E11: Nota | F11: =IFERROR(IF(Indice!B6="","2XX2",YEAR(Indice!B6)),"2XX2") -> 2020 | G11: =IFERROR(YEAR(Indice!B6-366),"2XX1") -> 2019
B12: ACTIVOS
B13: Activos Corrientes
C14: Efectivo y equivalente de efectivo | E14: 3 | F14: ='Nota 3'!C20 -> 79151.561 | G14: ='Nota 3'!D20 -> 464376.549
C15: Inversiones temporales | E15: 4 | F15: ='Nota 4'!B18 -> 0 | G15: ='Nota 4'!C18 -> 0
C16: Cuentas por cobrar comerciales | E16: 5 | F16: ='Nota 5'!C27 -> 19439095.1 | G16: ='Nota 5'!D27 -> 16087114.92
C17: Otros créditos | E17: 6 | F17: ='Nota 6'!B24 -> 11778226.88 | G17: ='Nota 6'!C24 -> 9878373.911
C18: Inventarios | E18: 7 | F18: ='Nota 7'!B15 -> 1379142.516 | G18: ='Nota 7'!C15 -> 1491409.308
C19: Total activos corrientes | F19: =SUM(F14:F18) -> 32675616.06 | G19: =SUM(G14:G18) -> 27921274.69
B20: Activos no Corrientes
C21: Otros créditos | E21: 6 | F21: ='Nota 6'!F15 -> 67568.776 | G21: ='Nota 6'!G15 -> 583330.495
C22: Cuentas por cobrar comerciales | E22: 5 | F22: ='Nota 5'!C54 -> 0 | G22: ='Nota 5'!D54 -> 0
C23: Inversión en asociadas | E23: 8 | F23: ='Nota 8'!B8 -> 1138287.008 | G23: ='Nota 8'!C8 -> 1135019.444
C24: Propiedades, planta y equipo/Bienes de uso, neto | E24: 9 | F24: ='Nota 9'!L27 -> 16081809.98 | G24: ='Nota 9'!M27 -> 13073122.01
C25: Activos disponibles para la venta | E25: 10 | F25: ='Nota 10'!B19 -> 0 | G25: ='Nota 10'!C19 -> 0
C26: Activos intangibles | E26: 11 | F26: ='Nota 11'!B14 -> 214729.172 | G26: ='Nota 11'!C14 -> 346794.908
C27: Goodwill | E27: 12 | F27: ='Nota 12'!B11 -> 0 | G27: ='Nota 12'!C11 -> 0
C28: Total activos no corrientes | F28: =SUM(F21:F27) -> 17502394.93 | G28: =SUM(G21:G27) -> 15138266.85
B29: Total Activos | F29: =+F19+F28 -> 50178011 | G29: =+G19+G28 -> 43059541.54
B30: PASIVOS Y PATRIMONIO NETO
B31: Pasivos corrientes | F31: -1
C32: Cuentas por pagar comerciales | E32: 13 | F32: ='Nota 13'!D13 -> 8303954.713 | G32: ='Nota 13'!E13 -> 6032589.258
C33: Préstamos a corto plazo | E33: 14 | F33: ='Nota 14'!E80 -> 12954502.88 | G33: ='Nota 14'!K80 -> 14962120.32
C34: Porción corriente de la deuda a largo plazo | E34: 15 | F34: ='Nota 15'!B15 -> 2795255.867 | G34: ='Nota 15'!C15 -> 3807106.836
C35: Remuneraciones y cargas sociales a pagar | E35: 16 | F35: ='Nota 16'!B12 -> 135723.825 | G35: ='Nota 16'!C12 -> 65621.221
C36: Impuestos a pagar | E36: 17 | F36: ='Nota 17'!B12 -> 180218.409 | G36: ='Nota 17'!C12 -> 420021.372
C37: Provisiones | E37: 18 | F37: ='Nota 18'!B13 -> 879076.542 | G37: ='Nota 18'!C13 -> 1249831.541
C38: Otros pasivos corrientes | E38: 19 | F38: ='Nota 19'!B14 -> 55546.898 | G38: ='Nota 19'!C14 -> 95345.208
C39: Total Pasivos Corrientes | F39: =+F32+F33+F34+F35+F36+F37+F38 -> 25304279.13 | G39: =+G32+G33+G34+G35+G36+G37+G38 -> 26632635.76
B40: Pasivos no corrientes
C41: Préstamos a largo plazo | E41: 14 | F41: ='Nota 14'!E109 -> 9209501.238 | G41: ='Nota 14'!K109 -> 4337508.877
C42: Otros pasivos no corrientes | E42: 19 | F42: ='Nota 19'!F14 -> 0 | G42: ='Nota 19'!G14 -> 0
C43: Total pasivos no corrientes | F43: =SUM(F41:F42) -> 9209501.238 | G43: =SUM(G41:G42) -> 4337508.877
B45: Total Pasivos | F45: =+F39+F43 -> 34513780.37 | G45: =+G39+G43 -> 30970144.63
B46: Patrimonio Neto
C47: Capital integrado | E47: 20 | F47: ='Nota 20'!B11 -> 10000000 | G47: ='Nota 20'!C11 -> 10000000
C48: Reserva de revalúo | E48: 21 | F48: =' Nota 21'!B8 -> 2222952.601 | G48: =' Nota 21'!C8 -> 2222952.601
C49: Reserva legal | E49: 21 | F49: =' Nota 21'!B12 -> 616954.318 | G49: =' Nota 21'!C12 -> 609871.175
C50: Reservas de revaluo técnico | E50: 21 | F50: =' Nota 21'!B16 -> 3847456.99 | G50: =' Nota 21'!C16 -> 0
C51: Reservas facultatitvas | E51: 21 | F51: =' Nota 21'!B20 -> -1157712.992 | G51: =' Nota 21'!C20 -> -1160980.556
C52: Diferencia transitoria por conversión | E52: 22 | F52: ='Nota 22'!B8 -> 0 | G52: ='Nota 22'!C8 -> 0
C53: Resultados acumulados | E53: 23 | F53: ='Nota 23'!B10 -> 134579.709 | G53: ='Nota 23'!C10 -> 417553.69
C54: Subtotal | F54: =SUM(F47:F53) -> 15664230.63 | G54: =SUM(G47:G53) -> 12089396.91
C55: Interés minoritario | E55: 24 | F55: ='Nota 24'!B8 -> 0 | G55: ='Nota 24'!C8 -> 0
B56: Total Patrimonio Neto | F56: =F54 -> 15664230.63 | G56: =G54 -> 12089396.91
B57: Total Pasivos y Patrimonio Neto | F57: =+F45+F56 -> 50178011 | G57: =+G45+G56 -> 43059541.54
B59: Las notas que se acompañan forman parte integrante de estos estados. | F59: =F29-F57 -> 0 | G59: =G29-G57 -> 0

Sheet ER
A1: =Indice!C1 -> BIEDERMANN PUBLICIDAD S.A. | B1: Indice | D1: =ER!A4 -> 
A7: ESTADO DE RESULTADOS
A8: =IFERROR(IF(Indice!B6="","Al dia... de mes… de año 2XX2…","Al "&DAY(Indice!B6)&" de "&VLOOKUP(MONTH(Indice!B6),Indice!S:T,2,0)&" de "&YEAR(Indice!B6)),"Al dia... de mes… de año 2XX2…") -> Al 31 de Diciembre de 2020
A9: Comparativo con igual período del año anterior
A10: (En miles de guaraníes)
B12: Nota | C12: =IFERROR(IF(Indice!B6="","2XX2",YEAR(Indice!B6)),"2XX2") -> 2020 | D12: =IFERROR(YEAR(Indice!B6-366),"2XX1") -> 2019
A13: Ventas | B13: 25 | C13: ='Nota 25'!B26 -> 22456749.21 | D13: ='Nota 25'!C26 -> 34309380.16
A14: Costo de ventas | B14: 26 | C14: ='Nota 26'!B21 -> 11774794.05 | D14: ='Nota 26'!C21 -> 19503312.63
A15: Utilidad bruta | C15: =C13-C14 -> 10681955.16 | D15: =D13-D14 -> 14806067.54
A16: Gastos de ventas | B16: 27 | C16: ='Nota 27'!B41 -> 851158.297 | D16: ='Nota 27'!E41 -> 2452315.269
A17: Gastos administrativos | B17: 27 | C17: ='Nota 27'!C41 -> 10503482.72 | D17: ='Nota 27'!F41 -> 12669111.58
A18: Otros ingresos y gastos operativos | B18: 28 | C18: ='Nota 28'!B16-'Nota 28'!F16 -> 987483.966 | D18: ='Nota 28'!C16-'Nota 28'!G16 -> 1145139.237
A19: Resultado operativo | C19: =+C15-C16-C17+C18 -> 314798.118 | D19: =+D15-D16-D17+D18 -> 829779.929
A20: Ingresos financieros - neto | B20: 29 | C20: ='Nota 29'!B14 -> 0 | D20: ='Nota 29'!C14 -> 0
A21: Gastos financieros - neto | B21: 29 | C21: ='Nota 29'!F14 -> 0 | D21: ='Nota 29'!G14 -> 0
A22: Subtotal | C22: =+C19+C20-C21 -> 314798.118 | D22: =+D19+D20-D21 -> 829779.929
A23: Resultado de inversiones en asociadas | B23: 30 | C23: ='Nota 30'!B16 -> 0 | D23: ='Nota 30'!C16 -> 0
A24: Resultados ordinarios antes de impuesto a la renta y participación minoritaria | C24: =C22+C23 -> 314798.118 | D24: =D22+D23 -> 829779.929
A25: Resultado participación minoritaria | B25: 31 | C25: ='Nota 31'!B16 -> 0 | D25: ='Nota 31'!C16 -> 0
A26: Resultado ordinario antes del impuesto a la renta | C26: =+C24+C25 -> 314798.118 | D26: =+D24+D25 -> 829779.929
A27: Impuesto a la renta | B27: 32 | C27: ='Nota 32'!B14 -> 180218.409 | D27: ='Nota 32'!C14 -> 412226.239
A28: Resultado neto de actividades ordinarias | C28: =+C26-C27 -> 134579.709 | D28: =+D26-D27 -> 417553.69
A29: Resultado extraordinario neto de impuesto a la renta | B29: 33 | C29: ='Nota 33'!B15 -> 0 | D29: ='Nota 33'!C15 -> 0
A30: Resultado sobre actividades discontinuadas neto de impuesto a la renta | B30: 34 | C30: ='Nota 34'!B12 -> 0 | D30: ='Nota 34'!C12 -> 0
A31: Utilidad/(Pérdida) neta del año | C31: =C28+C29+C30 -> 134579.709 | D31: =D28+D29+D30 -> 417553.69
A32: Utilidad neta por acción ordinaria | B32: 35 | C32: ='Nota 35'!B10 -> 134.579709 | D32: ='Nota 35'!C10 -> 417.55369
A35: Las notas que se acompañan forman parte integrante de estos estados. | C35: =C31-BG!F53 -> 5.820766091e-10 | D35: =D31-BG!G53 -> 0

Sheet EVPN
A1: =Indice!C1 -> BIEDERMANN PUBLICIDAD S.A. | H1: Indice
F4: ESTADO DE EVOLUCIÓN DEL PATRIMONIO NETO
H5: =IFERROR(IF(Indice!B6="","Al dia... de mes… de año 2XX2…","Al "&DAY(Indice!B6)&" de "&VLOOKUP(MONTH(Indice!B6),Indice!S:T,2,0)&" de "&YEAR(Indice!B6)),"Al dia... de mes… de año 2XX2…") -> Al 31 de Diciembre de 2020
A6: Comparativo con igual periodo del año anterior
A7: (En miles de guaraníes)
C10: Aporte de los propietarios | L10: Ganancias reservadas
C11: Capital suscripto e integrado | D11: Aporte para | F11: Primas de emisión | H11: Reserva de revalúo | J11: Reserva de revalúo técnico | L11: Reserva legal | N11: Reserva facultativa | P11: Resultados acumulados | R11: Interes Minoritario | T11: Total
D12: aumento de capital | P12: Total
A14: =IFERROR(IF(Indice!B6="","Saldo al .. de de 20X0 ","Saldo al "&DAY(Indice!B6)&" de "&VLOOKUP(MONTH(Indice!B6),Indice!S:T,2,0)&" de "&YEAR(Indice!B6-730)),"Saldo al .. de de 20X0 ") -> Saldo al 31 de Diciembre de 2019 | C14: ='Nota 20'!C8 -> 10000000 | F14: 0 | H14: =' Nota 21'!C8 -> 2222952.601 | J14: 0 | L14: =' Nota 21'!C12 -> 609871.175 | N14: =' Nota 21'!C20 -> -1160980.556 | P14: ='Nota 23'!C9 -> 417553.69 | R14: 0 | T14: =SUM(C14:R14) -> 12089396.91
A15: Cambio en política contable (Nota….)
A16: Saldo reestructurado | C16: =SUM(C14:C15) -> 10000000 | F16: =SUM(F14:F15) -> 0 | H16: =SUM(H14:H15) -> 2222952.601 | J16: =SUM(J14:J15) -> 0 | L16: =SUM(L14:L15) -> 609871.175 | N16: =SUM(N14:N15) -> -1160980.556 | P16: =SUM(P14:P15) -> 417553.69 | R16: =SUM(R14:R15) -> 0 | T16: =SUM(C16:R16) -> 12089396.91
A17: Distribución de dividendos s/Acta de Asamblea Ordinaria N° 01/2020 de fecha 29/06/2020 | P17: -417553.69 | T17: =SUM(C17:R17) -> -417553.69
A18: Integración del capital social
A19: Reducción del capital social s/Acta de Asamblea General Ordinaria N°… de fecha……..
A20: Revalúo de activos fijos | T20: =SUM(C20:R20) -> 0
A21: Revalúo técnico | J21: 3847456.99 | T21: 3847456.99
A22: Reserva Legal | L22: 7083.143 | T22: 7083.143
A23: Reserva facultativa - invers.en otras empres. | N23: 3267.564 | T23: 3267.564
A24: Resultado del año | P24: 134579.709 | T24: 134579.709
A26: =IFERROR(IF(Indice!B6="","Saldo al .. de de 20X1 ","Saldo al "&DAY(Indice!B6)&" de "&VLOOKUP(MONTH(Indice!B6),Indice!S:T,2,0)&" de "&YEAR(Indice!B6-365)),"Saldo al .. de de 20X1 ") -> Saldo al 31 de Diciembre de 2020 | C26: =C16+C17+C18+C19+C20+C21+C24 -> 10000000 | D26: =SUM(D14:D24) -> 0 | F26: =F16+F17+F18+F19+F20+F21+F24 -> 0 | G26: =SUM(G14:G25) -> 0 | H26: =H16+H17+H18+H19+H20+H21+H24 -> 2222952.601 | J26: =J16+J17+J18+J19+J20+J21+J24 -> 3847456.99 | L26: =L16+L17+L18+L19+L20+L21+L24+L23+L22 -> 616954.318 | N26: =N16+N17+N18+N19+N20+N21+N24+N23+N22 -> -1157712.992 | P26: =P16+P17+P18+P19+P20+P21+P24+P23+P22 -> 134579.709 | R26: =R16+R17+R18+R19+R20+R21+R24+R23+R22 -> 0 | T26: =T16+T17+T18+T19+T20+T21+T24+T23+T22 -> 15664230.63
A27: Distribución de dividendos s/Acta de Asamblea General Ordinaria N°… de fecha………
A28: Revalúo de activos fijos
A29: Desafectación de la reserva de revalúo técnico
A30: Resultado del año
A32: =IFERROR(IF(Indice!B6="","Saldo al .. de de 20X2 ","Saldo al "&DAY(Indice!B6)&" de "&VLOOKUP(MONTH(Indice!B6),Indice!S:T,2,0)&" de "&YEAR(Indice!B6)),"Saldo al .. de de 20X2 ") -> Saldo al 31 de Diciembre de 2020 | C32: =C26+C27+C28+C29+C30 -> 10000000 | D32: =SUM(D26:D30) -> 0 | F32: =F26+F27+F28+F29+F30 -> 0 | H32: =H26+H27+H28+H29+H30 -> 2222952.601 | J32: =J26+J27+J28+J29+J30 -> 3847456.99 | L32: =L26+L27+L28+L29+L30 -> 616954.318 | N32: =N26+N27+N28+N29+N30 -> -1157712.992 | P32: =P26+P27+P28+P29+P30 -> 134579.709 | R32: =R26+R27+R28+R29+R30 -> 0 | T32: =T26+T27+T28+T29+T30 -> 15664230.63
A34: Las notas que se acompañan forman parte integrante de estos estados. | T34: =T32-BG!F56 -> 0
A37: =+Indice!B67 -> 0

Sheet EFE
A1: =Indice!C1 -> BIEDERMANN PUBLICIDAD S.A.
A5: ESTADO DE FLUJOS DE EFECTIVO (Método directo)
A6: =IFERROR(IF(Indice!B6="","Al dia... de mes… de año 2XX2…","Al "&DAY(Indice!B6)&" de "&VLOOKUP(MONTH(Indice!B6),Indice!S:T,2,0)&" de "&YEAR(Indice!B6)),"Al dia... de mes… de año 2XX2…") -> Al 31 de Diciembre de 2020
A7: Comparativo con igual periodo del año anterior
A8: (En miles de guaraníes)
B11: =IFERROR(IF(Indice!B6="","2XX2",YEAR(Indice!B6)),"2XX2") -> 2020 | C11: =IFERROR(YEAR(Indice!B6-366),"2XX1") -> 2019
A13: FLUJO DE EFECTIVO DE ACTIVIDADES OPERATIVAS
A14: Cobranzas efectuadas a clientes | B14: 20135409.75 | C14: 31802288.75
A15: Pagos efectuados a proveedores y empleados | B15: -22639968.73 | C15: -33486013.31
A16: Efectivo generado por las operaciones
A17: Intereses pagados
A18: Otros ingresos y (egresos) - neto
A19: Pagos de impuesto a la renta | B19: -209567.328 | C19: 191654.204
A20: Flujo neto de efectivo de actividades operativas | B20: =SUM(B14:B19) -> -2714126.306 | C20: =SUM(C14:C19) -> -1492070.354
A22: FLUJO DE EFECTIVO DE ACTIVIDADES DE INVERSIÓN
A23: Adquisición de bienes de uso | B23: 325866.421 | C23: 575248.681
A24: Adquisición de bienes Curtiembre - fideicomitida
A25: Ventas de activos fijos | B25: 0 | C25: 0
A26: Ventas de bienes de uso | C26: -781648.921
A27: Intereses cobrados sobre inversiones
A28: Adquisición de inversiones | B28: =-43156.756-612000 -> -655156.756
A29: Flujo neto de efectivo de actividades de inversión | B29: =SUM(B23:B28) -> -329290.335 | C29: =SUM(C23:C28) -> -206400.24
A31: FLUJO DE EFECTIVO DE ACTIVIDADES DE FINANCIACIÓN
A32: (Disminución) Incremento de préstamos | B32: 3075745.343 | C32: 1089019.478
A33: Aportes de capital recibidos
A34: Dividendos pagados | B34: -417553.69 | C34: -448810.049
A35: Flujo neto de efectivo de actividades de financiamiento | B35: =B32+B33+B34 -> 2658191.653 | C35: =C32+C33+C34 -> 640209.429
A37: (Disminución) Incremento neto de efectivo | B37: =+B20+B29+B35 -> -385224.988 | C37: =+C20+C29+C35 -> -1058261.165
A38: Efecto estimado de la diferencia de cambio sobre el saldo de efectivo | B38: 0 | C38: 0
A39: Efectivo al principio del año | B39: =C41 -> 464376.549 | C39: 1522637.714
A41: Efectivo al final del periodo | B41: =+SUM(B37:B39) -> 79151.561 | C41: =+SUM(C37:C39) -> 464376.549
A43: Las notas que se acompañan forman parte integrante de estos estados. | B43: =B41-BG!F14 -> 9.167706594e-10 | C43: =C41-BG!G14 -> 1.28056854e-09

Sheet Nota1
A1: =Indice!C1 -> BIEDERMANN PUBLICIDAD S.A. | I1: BG
A6: NOTAS A LOS ESTADOS FINANCIEROS CORRESPONDIENTES AL PERIODO TERMINADO | H6: =IFERROR(IF(Indice!B6="","Al dia... de mes… de año 2XX2…","Al "&DAY(Indice!B6)&" de "&VLOOKUP(MONTH(Indice!B6),Indice!S:T,2,0)&" de "&YEAR(Indice!B6)),"Al dia... de mes… de año 2XX2…") -> Al 31 de Diciembre de 2020
A7: Presentadas en forma comparativa con el periodo terminado | F7: =IFERROR("Al "&DAY(Indice!B6)&" de "&VLOOKUP(MONTH(Indice!B6),Indice!S:T,2,0)&" de "&YEAR(Indice!B6-366),"Al dia... de mes… de año 2XX1…") -> Al 31 de Diciembre de 2019
A11: NOTA 1 – DESCRIPCIÓN DE LA NATURALEZA Y DEL NEGOCIO DE LA COMPAÑÍA
A12: Antecedentes de la sociedad: naturaleza jurídica, antecedentes sobre la constitución de la sociedad y reformas estatutarias, actividad principal y secundarias.
A13: La firma BIEDERMANN PUBLICIDAD S.A. con domicilio legal en la ciudad de Asunción, Capital de la República del Paraguay.
A14: BIEDERMANN PUBLICIDAD SOCIEDAD ANÓNIMA (BIEDERMANN PUBLICIDAD S.A.) ha sido constituido por Escritura Pública No.
A15: 143 de fecha 20 de Mayo de 1968, pasada ante el Escribano Público Carlos Alberto Alfieri, aprobada por Decreto del P.E. de la Nación
A16: No. 487 de fecha 16 de Setiembre de 1968 e inscripta en el Registro Público de Comercio bajo el No. 361 en fecha 20 de
A17: setiembre de 1968. Modificaciones estatutarias:
A18: 1.) Escritura Pública No. 78 de fecha 17 de Diciembre de 1998, pasada ante el Escribano Público Daniel Pedro Vierci Casaccia,
A19: inscripta en la Dirección General de los Registros Públicos - Registro de Personas Jurídicas y Asociaciones en fecha 20 de Enero
A20: de 1999, bajo el No. 9 y, en el Registro Público de Comercio en fecha 19 de Enero de 1999, bajo el No. 28.
A21: 2.) Escritura Pública No. 28 de fecha 20 de junio de 2005, pasada ante el Escribano Público Daniel Pedro Vierci Casaccia,
A22: inscripta en la Dirección General de los Registros Públicos - Registro de Personas Jurídicas y Asociaciones en fecha 04 de Agosto
A23: de 2005, bajo el No. 825 y, en el Registro Público de Comercio en fecha 4 de Agosto de 2005, bajo el No. 239.
A24: 3.) Escritura Pública No. 107 de fecha 10 de Octubre de 2007, pasada ante la Escribana Pública Elizabeth L. Delgado de Ayala,
A25: inscripta en la Dirección General de los Registros Públicos – Sección Personas Jurídicas y Asociaciones en fecha 27 de Noviembre
A26: de 2007, bajo el No. 1458 y, en el Registro Público de Comercio en fecha 27 de Noviembre de 2007, bajo el No. 704.
A27: 4.) Escritura Pública No. 130 de fecha 15 de Diciembre de 2007, pasada ante la Escribana Pública Elizabeth L. Delgado de Ayala,
A28: inscripta en la Dirección General de los Registros Públicos – Sección Personas Jurídicas y Asociaciones en fecha 6 de Febrero de
A29: 2008, bajo el No. 50 y, en el Registro Público de Comercio en fecha 6 de Febrero de 2008, bajo el No. 137.
A30: 5.) Escritura Pública No. 177 de fecha 31 de Diciembre de 2008, pasada ante la Escribana Pública Elizabeth L. Delgado de Ayala,
A31: inscripta en la Dirección General de los Registros Públicos – Sección Personas Jurídicas y Asociaciones en fecha 12 de Febrero de
A32: 2009, bajo el No. 280 y, en el Registro Público de Comercio en fecha 25 de Marzo de 2009, bajo el No. 230.
A33: 6.) Escritura Pública No. 85 de fecha 30 de Junio de 2010, pasada ante la Escribana Pública Elizabeth L. Delgado de Ayala, inscripta
A34: en la Dirección General de los Registros Públicos – Sección Personas Jurídicas y Asociaciones en fecha 22 de Julio de 2010, bajo el
A35: No. 576 y, en el Registro Público de Comercio en fecha 22 de Julio de 2010, bajo el No. 391.
A36: 7.) Escritura Pública No. 18 de fecha 8 de Febrero de 2012, pasada ante la Escribana Pública Elizabeth L. Delgado de Ayala,
A37: inscripta en la Dirección General de los Registros Públicos – Sección Personas Jurídicas y Asociaciones en fecha 5 de Marzo de
A38: 2012, bajo el No. 191 y, en el Registro Público de Comercio en fecha 5 de Marzo de 2012, bajo el No. 1350.
A39: 8.) Escritura Pública Nº 40 de fecha 13/04/2016, pasada ante la Escribana Pública Elizabeth L. Delgado de Ayala, inscripta en la
A40: Dirección General de los Registros Públicos – Sección Personas Jurídicas y Asociaciones en fecha 16/06/2016, bajo el Nº 1 y, en la
A41: Dirección Gral. de los Registros Públicos Sección Comercio, bajo el Nº 001.
A42: La Sociedad tiene como objeto principal la explotación del ramo de publicidad en sus diversas modalidades.
A43: La Sociedad podrá emitir Títulos-Valores y podrán ser negociados a través de la Bolsa de Valores y Productos de Asunción S.A.
A44: u otras entidades que se llegaren a crear, previa autorización de la Comisión Nacional de Valores. Además podrá realizar todo
A45: tipo de actos, contratos, operaciones, que se relacionen directa o indirectamente con su Objeto y, para el ejercicio de todas las
A46: acciones que considere necesario y/o ventajosas para la Sociedad, o cualquier otra actividad lícita.

Sheet Nota 2
A1: =Indice!C1 -> BIEDERMANN PUBLICIDAD S.A. | I1: BG
A6: NOTA 2 - RESUMEN DE LAS PRINCIPALES POLÍTICAS CONTABLES
A7: Resumen de las principales políticas contables: a modo referencial, se incluyen las siguientes revelaciones de políticas contables en estados financieros de uso general que podrá ser tenida en consideración por las sociedades emisoras para la preparación de este capítulo de los estados financieros:
A10: a. Bases de contabilización (Según NIF Bases de preparación de los Estados Financieros)
A11: Los estados financieros se han preparado siguiendo los criterios de las Normas de Información Financiera (NIF) emitidas por el Consejo de Contadores Públicos del Paraguay sobre la base de costos históricos, excepto para el caso de activos y pasivos en moneda extranjera y las propiedades, planta y equipo según se explica en los puntos c ) y k), y no reconocen en forma integral los efectos de la inflación sobre la situación patrimonial y financiera de la sociedad, sobre los resultados de sus operaciones y los flujos de efectivo, en atención a que la corrección monetaria no constituye una práctica contable obligatoria en el Paraguay. De haberse aplicado una corrección monetaria integral de los estados financieros, podrían haber surgido diferencias en la presentación de la situación patrimonial y financiera de la sociedad, en los resultados de sus operaciones y en los flujos de efectivo al 31/12/2020, y por los ejercicios cerrados el, 31 de Diciembre de 2020 y 2019. Según el índice general de precios del consumo (IPC) publicado por el Banco Central del Paraguay, la inflación fue de 2,2% en el año 2020 y 2,8% en el año 2019.
A14: b. Uso de estimaciones contables
A15: La preparación de los presentes estados financieros requiere que la Gerencia de la sociedad realice estimaciones y evaluaciones que afectan el monto de los activos y pasivos registrados y contingentes, como así también los ingresos y egresos registrados en el ejercicio. Los resultados reales futuros pueden diferir de las estimaciones y evaluaciones realizadas a la fecha de preparación de los presentes estados financieros.
A17: c. Moneda extranjera
A18: Los activos y pasivos en moneda extranjera se valúan a los tipos de cambio vigentes a la fecha de cierre del ejercicio.
A19: Las diferencias de cambio originadas por fluctuaciones en los tipos de cambio producidos entre las fechas de concertación de las operaciones y su liquidación o valuación al cierre del ejercicio, son reconocidas en resultados.
C22: =IFERROR(IF(Indice!B6="","2XX2",YEAR(Indice!B6)),"2XX2") -> 2020 | G22: =IFERROR(YEAR(Indice!B6-366),"2XX1") -> 2019
B23: Indicar moneda | C23: Simbología según ISO 4217 | D23: Miles de G. | F23: Indicar moneda | G23: Simbología según ISO 4217 | H23: Miles de G.
A24: Activos | B24: Guaraní | C24: PYG | D24: =BG!F29/1000 -> 50178.011 | F24: Guaraní | G24: PYG | H24: =BG!G29/1000 -> 43059.54154
A26: Pasivos | B26: Guaraní | C26: PYG | D26: =BG!F45/1000 -> 34513.78037 | F26: Guaraní | G26: PYG | H26: =BG!G45/1000 -> 30970.14463
A28: Posición neta | D28: =D24-D26 -> 15664.23063 | H28: =H24-H26 -> 12089.39691
A31: A la fecha de emisión de estos estados financieros, el tipo de cambio de la moneda extranjera DÓLAR no varió sustancialmente con respecto al vigente al 31 de diciembre 2019 de tal forma que afecte significativamente los estados financieros y de resultados de la sociedad.
A33: d. Efectivo y equivalentes de efectivo
A34: Se considerarán dentro del concepto de efectivo los saldos en efectivo, disponibilidades en cuentas bancarias y toda inversión de muy alta liquidez, con vencimiento originalmente pactado no superior a tres meses.
A36: e. Inversiones
A37: Las inversiones temporales se valúan de acuerdo a los siguientes criterios de valuación:  Las inversiones no corrientes en sociedades donde no se ejerce el control, se valúan a su valor patrimonial proporcional.
A38: Obs.: En caso de la existencia de saldos y transacciones con partes relacionadas, la información que corresponda a ser expuesta por la sociedad, se ajustará a lo requerido por la Norma de Información Financiera N° 7 Revelaciones de partes relacionadas.
A39: f. Previsión para cuentas de dudoso cobro/incobrables
A40: Las previsiones para cuentas de dudoso cobro se determinan al cierre de cada ejercicio sobre la base del estudio de la cartera de créditos realizado con el objeto de determinar la porción no recuperable de las cuentas a cobrar. El criterio aplicado por la Empresa para la constitución de las previsiones fue realizado en un 4,502% sobre la cartera de créditos en el ejercicio 2019.
A41: Normal, de 31 a 90 dias de atraso.
A42: En Gestión de Cobro, de 91 a 120 dias de atraso.
A43: En Gestión Judicial, de 121 días de atraso en adelante.
A45: g. Inventarios
A46: Las existencias se valúan al menor entre su costo de adquisición o de producción y su valor neto de realización (NIF 12, párrafo 5). Para determinar el consumo (baja de inventarios) se aplicarán las fórmulas de costeo siguientes: PPP (Precio Promedio Ponderado).
A48: h. Activos disponibles para la venta
A49: Los activos disponibles para la venta representan bienes que fueron desafectados de la actividad productiva y se mantienen con el único objetivo de ser vendidos. Los mismos se valúan, sin amortizar, al menor entre el valor de mercado de los mismos y su costo (valor libro) al momento de su designación como disponibles para la venta.
A51: i. Previsiones para desvalorización y deterioro de inventarios
A52: A la fecha de este informe no fueon constituidas previsiones para desvalorizaciòn y deterioro de inventario.
A54: j. Propiedades, planta y equipo
A55: A partir del presente ejercicio los bienes se hallan valuados a sus costos de adquisición y se le asignara valores residuales a cada tipo o clase de activo fijo depreciable, el cual no podrá ser superior al 20% de su valor de costo. Los bienes del activo fijo serán depreciados de acuerdo a la distribución sistemática del degaste o deterioro que experimente cada bien, el cual se deberá considerar la estimación de vida útil según la reglamentación vigente de la Subsecretaria de Estado de Tributación.
A57: k. Intangibles
A58: Los intangibles se exponen a su costo incurrido menos las correspondientes amortizaciones acumuladas al cierre del año.
A59: Las amortizaciones son calculadas por el método que refleja el patrón de consumo de los beneficios económicos derivados de los intangibles o por el método de línea recta (se explica el método elegido) si el patrón no pudiera ser determinado de forma fiable (NIF 15, párrafo 64). Ver Nota ...
A60: Este rubro incluye costos incurridos por la sociedad relacionados con ingresos futuros.
A63: l. Goodwill
A64: A la fecha de este informe no existen en la Sociedad.
A65: Las estimaciones sobre los flujos de fondos netos son realizadas por la Gerencia sobre la base de las mejores estimaciones disponibles al momento de la preparación de los presentes estados financieros. Tal como lo establece la NIF 13 emitida por el Consejo de Contadores Públicos del Paraguay, el Goodwill no se amortiza, sino se afecta a resultados por su deterioro según la NIF 18.
A68: m. Reconocimiento de ingresos y egresos
A69: Los ingresos y egresos son reconocidos en función de su devengamiento.
A71: n. Impuesto a la renta
A72: El impuesto a la renta que se carga a los resultados del año se basa en la utilidad contable antes de este concepto, ajustada por las partidas que la ley incluye o excluye para la determinación de la utilidad gravable a la que se aplica la tasa legal vigente del impuesto y por el reconocimiento del cargo o el ingreso originado por la aplicación del impuesto diferido, si los hubiere.
A74: o. Restricciones a la distribución de utilidades
A75: A la fecha de este informe, no existen restricciones a la distribución de utilidades.
A77: p. Derechos en Fideicomiso
A78: A la fecha de éste informe no existen operaciones de la especie constituidas por la empresa.
A79: q. Otros principios, prácticas y métodos
A80: A la fecha de éste informe no existen otros principios, prácticas o métodos seguidos por la empresa.
A81: Obs.: Cambios en políticas contables y su efecto sobre los estados financieros, como así también las modificaciones o ajustes de la información de ejercicios anteriores deben exponerse conforme a lo requerido por la Norma de Información Financiera N° 6 Utilidad o pérdida neta por el período, errores fundamentales y cambios en políticas contables

Sheet Nota 3
A1: =Indice!C1 -> BIEDERMANN PUBLICIDAD S.A. | E1: BG
A2: Obs.: Revelar situación en el caso de contar con disponibilidad restringida
A7: NOTA 3 - EFECTIVO Y EQUIVALENTE DE EFECTIVO
A8: En miles de guaranies
A9: La composición de la cuenta es la siguiente:
A11: Concepto | C11: =IFERROR(IF(Indice!B6="","2XX2",YEAR(Indice!B6)),"2XX2") -> 2020 | D11: =IFERROR(YEAR(Indice!B6-366),"2XX1") -> 2019
A13: Caja | C13: 3500 | D13: 3350
A14: Recaudaciones a depositar | C14: =8852.114 -> 8852.114 | D14: =107590.322 -> 107590.322
A15: Bancos Locales - Moneda local Guaraníes | C15: =1830.499+12675.835+2182.074+109.561+906.619+0.533 -> 17705.121 | D15: =1910.325+200271.931+2034.711+100.062+143604.049 -> 347921.078
A16: Bancos Locales - Moneda extranjera Dólares | C16: =48893.908+200.418 -> 49094.326 | D16: =654.798+4860.351 -> 5515.149
A17: Bancos Locales - Moneda extranjera otros | C17: 0 | D17: 0
A18: Bancos en el Extranjero - Moneda extranjera Dólares | C18: 0 | D18: 0
A19: (nuevas cuentas a incluir) | C19: 0 | D19: 0
A20: Total | C20: =SUM($C$13:C19) -> 79151.561 | D20: =SUM($D$13:D19) -> 464376.549

Sheet Nota 4
A1: =Indice!C1 -> BIEDERMANN PUBLICIDAD S.A. | D1: BG
A4: NOTA 4 - INVERSIONES TEMPORALES
A6: La composición de la cuenta es la siguiente:
A7: NO APLICABLE | B7: En miles de guaranies
A8: Concepto | B8: =IFERROR(IF(Indice!B6="","2XX2",YEAR(Indice!B6)),"2XX2") -> 2020 | C8: =IFERROR(YEAR(Indice!B6-366),"2XX1") -> 2019
A9: Inversiones en Titulos del Sistema Financiero Local - Moneda Local Guaraníes | B9: 0 | C9: 0
A10: Inversiones en Titulos del Sistema Financiero Local - Moneda Extranjera Dólares | B10: 0 | C10: 0
A11: Inversiones en Titulos del Sistema Financiero Local - Moneda Extranjera otros | B11: 0 | C11: 0
A12: Inversiones en Mercado Bursatil Local - Moneda Local Guaraníes | B12: 0 | C12: 0
A13: Inversiones en Mercado Bursatil Local - Moneda Extranjera Dólares | B13: 0 | C13: 0
A14: Inversiones en Mercado Bursatil Extranjera - Moneda Extranjera Dólares | B14: 0 | C14: 0
A15: Inversiones en Mercado Bursatil Extranjera - Moneda Extranjera otros | B15: 0 | C15: 0
A16: Otras inversiones - Moneda Local Guaraníes | B16: 0 | C16: 0
A17: Otras inversiones - Moneda Extranjera Dólares | B17: 0 | C17: 0
A18: Total | B18: =SUM($B$9:B17) -> 0 | C18: =SUM($C$9:C17) -> 0

Sheet Nota 5
A1: =Indice!C1 -> BIEDERMANN PUBLICIDAD S.A. | F1: BG
A2: Detallar cartera vencida y no vencida por clientes locales, extranjeros y partes relacionadas
A3: Se indicarán en este rubro todos los créditos a favor de la empresa provenientes de las ventas de Mercaderías y/o servicios (atendiendo a la actividades ordinarias de la empresa), separando las ventas locales en moneda nacional y/o extranjera de las ventas fuera del país en moneda nacional y/o extranjera
A5: NOTA 5 – CUENTAS POR COBRAR COMERCIALES
A6: Las cuentas a cobrar comerciales a corto plazo se integran como sigue:
C7: En miles de guaraníes
C8: =IFERROR(IF(Indice!B6="","2XX2",YEAR(Indice!B6)),"2XX2") -> 2020 | D8: =IFERROR(YEAR(Indice!B6-366),"2XX1") -> 2019 | F8: Composición de la cartera de créditos por ventas | G8: =Indice!B6 -> 2020-12-31
A9: Deudores por ventas locales | B9: Moneda Local Guaraníes | C9: 10408041.2 | D9: 10089378.81 | F9: Situación | G9: Monto | H9: % Previsiones sobre Cartera
A10: Deudores por ventas locales | B10: Moneda Extranjera Dólares | C10: 3684402.949 | D10: 1628038.831 | F10: A Total Cartera no Vencida | G10: 6703380.595 | H10: =G10/G17 -> 0.3318922858
A11: Deudores por ventas locales | B11: Moneda Extranjera otros | C11: 0 | D11: 0 | F11: B. Total Cartera Vencida | G11: =13494077.683 -> 13494077.68 | H11: =G11/G17 -> 0.6681077142
A12: Deudores por ventas en el exterior | B12: Moneda Local Guaraníes | C12: 0 | D12: 0 | F12: Composición Cartera Vencida
A13: Deudores por ventas en el exterior | B13: Moneda Extranjera Dólares | C13: 0 | D13: 0 | F13: Normal | G13: =1634126.506 -> 1634126.506 | H13: =G13/G11 -> 0.121099533
A14: Deudores por ventas en el exterior | B14: Moneda Extranjera otros | C14: 0 | D14: 0 | F14: En Gestión de Cobro | G14: 11859951.18 | H14: =G14/G11 -> 0.878900467
A15: Deudores - Entidad relacionada | B15: Moneda Local Guaraníes | C15: 6105014.131 | D15: 5128060.46 | F15: En Gestión de Cobro Judicial | G15: 0 | H15: 0
A16: Deudores - Entidad relacionada | B16: Moneda Extranjera Dólares | C16: 0 | D16: 0
A17: Deudores - Entidad relacionada | B17: Moneda Extranjera otros | C17: 0 | D17: 0 | F17: Total de la cartera de créditos (A+B) | G17: =G10+G11 -> 20197458.28 | H17: 1
A18: Cheques adelantados recibidos de clientes | B18: Moneda Local Guaraníes | C18: 0 | D18: 0
A19: Cheques adelantados recibidos de clientes | B19: Moneda Extranjera Dólares | C19: 0 | D19: 0 | F19: (-) Total Previsiones | G19: =-((G10*H10)+(SUMPRODUCT(G13:G15,H13:H15))) -> -12846408.89
A20: Cheques adelantados recibidos de clientes | B20: Moneda Extranjera otros | C20: 0 | D20: 0
A21: Cheques rechazados | B21: Moneda Local Guaraníes | C21: 0 | D21: 0 | F21: TOTAL NETO DE LA CARTERA DE CRÉDITOS | G21: =G17+G19 -> 7351049.385
A22: Cheques rechazados | B22: Moneda Extranjera Dólares | C22: 0 | D22: 0
A23: Otros | B23: Moneda Local Guaraníes | C23: 0 | D23: 0 | F23: Observaciones
A24: Otros | B24: Moneda Extranjera Dólares | C24: 0 | D24: 0 | F24: Criterios de Clasificación utilizados | G24: De | H24: A
A25: Otros | B25: Moneda Extranjera otros | C25: 0 | D25: 0 | F25: Normal | G25: 31 | H25: 90
A26: Menos Previsiones | C26: -758363.176 | D26: -758363.176 | F26: En Gestión de Cobro | G26: 91 | H26: 120
A27: Total | C27: =+SUM($C$9:C26) -> 19439095.1 | D27: =+SUM($D$9:D26) -> 16087114.92 | F27: En Gestión de Cobro Judicial | G27: 121 | H27: en adelante
A30: Las cuentas a cobrar comerciales a largo plazo se integran como sigue:
C31: En miles de guaraníes
C32: =IFERROR(IF(Indice!B6="","2XX2",YEAR(Indice!B6)),"2XX2") -> 2020 | D32: =IFERROR(YEAR(Indice!B6-366),"2XX1") -> 2019
A33: Deudores por ventas locales | B33: Moneda Local Guaraníes | C33: 0 | D33: 0
A34: Deudores por ventas locales | B34: Moneda Extranjera Dólares | C34: 0 | D34: 0
A35: Deudores por ventas locales | B35: Moneda Extranjera otros | C35: 0 | D35: 0
A36: Deudores por ventas en el exterior | B36: Moneda Local Guaraníes | C36: 0 | D36: 0
A37: Deudores por ventas en el exterior | B37: Moneda Extranjera Dólares | C37: 0 | D37: 0
A38: Deudores por ventas en el exterior | B38: Moneda Extranjera otros | C38: 0 | D38: 0
A39: Deudores - Entidad relacionada | B39: Moneda Local Guaraníes | C39: 0 | D39: 0
A40: Deudores - Entidad relacionada | B40: Moneda Extranjera Dólares | C40: 0 | D40: 0
A41: Deudores - Entidad relacionada | B41: Moneda Extranjera otros | C41: 0 | D41: 0
A42: Cheques adelantados recibidos de clientes | B42: Moneda Local Guaraníes | C42: 0 | D42: 0
A43: Cheques adelantados recibidos de clientes | B43: Moneda Extranjera Dólares | C43: 0 | D43: 0
A44: Cheques adelantados recibidos de clientes | B44: Moneda Extranjera otros | C44: 0 | D44: 0
A45: Deudores en gestión judicial | B45: Moneda Local Guaraníes | C45: 0 | D45: 0
A46: Deudores en gestión judicial | B46: Moneda Extranjera Dólares | C46: 0 | D46: 0
A47: Deudores en gestión judicial | B47: Moneda Extranjera otros | C47: 0 | D47: 0
A48: Cheques rechazados | B48: Moneda Local Guaraníes | C48: 0 | D48: 0
A49: Cheques rechazados | B49: Moneda Extranjera Dólares | C49: 0 | D49: 0
A50: Otros | B50: Moneda Local Guaraníes | C50: 0 | D50: 0
A51: Otros | B51: Moneda Extranjera Dólares | C51: 0 | D51: 0
A52: Otros | B52: Moneda Extranjera otros | C52: 0 | D52: 0
A53: Menos Previsiones | C53: 0 | D53: 0
A54: Total | C54: =+SUM($C$33:C53) -> 0 | D54: =+SUM($D$33:D53) -> 0

Sheet Nota 6
A1: =Indice!C1 -> BIEDERMANN PUBLICIDAD S.A. | D1: BG
A4: NOTA 6 - OTROS CRÉDITOS
A5: En miles de guaranies
A6: El rubro de otros créditos se compone como sigue:
A8: Corrientes | E8: No corrientes
A10: Concepto | B10: =IFERROR(IF(Indice!B6="","2XX2",YEAR(Indice!B6)),"2XX2") -> 2020 | C10: =IFERROR(YEAR(Indice!B6-366),"2XX1") -> 2019 | E10: Concepto | F10: =IFERROR(IF(Indice!B6="","2XX2",YEAR(Indice!B6)),"2XX2") -> 2020 | G10: =IFERROR(YEAR(Indice!B6-366),"2XX1") -> 2019
A11: Anticipos a proveedores | B11: 971490.129 | C11: 1570893.311 | E11: Garantía de Alquiler | F11: 67568.776 | G11: 66460.603
A12: Gastos pagados por adelantado | C12: 0 | E12: I.V.A. Crédito fiscal | F12: 0 | G12: 0
A13: Anticipo Impuesto a la Renta | B13: 177071.511 | C13: 135460.777 | E13: Anticipos a proveedores | F13: 0 | G13: 0
A14: Retención Impuesto a la Renta | B14: 87959.42 | C14: 185025.266 | E14: Gastos No Devengados - Intereses a Vencer | F14: 0 | G14: =44883.044+471986.848 -> 516869.892
A15: Retención Impuesto al Valor agregado | B15: 145817.558 | C15: 0 | E15: Total | F15: =SUM(F11:F14) -> 67568.776 | G15: =SUM(G11:G14) -> 583330.495
A16: Anticipos al Personal | B16: =37291.207+14891.717 -> 52182.924 | C16: 64174.998
A17: Costos a facturar | B17: =872774.753+357012.797+765686.902+294971.467 -> 2290445.919 | C17: 177444.016
A18: Ventas a realizar | B18: 544227.273 | C18: 0
A19: Empresas Relacionadas | B19: =1405732.675+3184503.893+2304688.814-453302.461 -> 6441622.921 | C19: 5140978.327
A20: Fondos a rendir | B20: =320627.876+51700.886+20185.395+7735.783 -> 400249.94 | C20: 550283.955
A21: Otros Activos en curso | B21: 612000 | C21: 0
A22: Gastos No Devengados - Seguros a Vencer | B22: 55159.289 | C22: 70752.742
A23: Gastos No Devengados - Intereses a Vencer | B23: 0 | C23: 1983360.519
A24: Total | B24: =SUM($B$11:B23) -> 11778226.88 | C24: =SUM($C$11:C23) -> 9878373.911

Sheet Nota 7
A1: =Indice!C1 -> BIEDERMANN PUBLICIDAD S.A. | D1: BG
A4: NOTA 7 – INVENTARIOS
A6: Los bienes de cambio están compuestos de la siguiente manera:
B7: En miles de guaranies
A8: Concepto | B8: =IFERROR(IF(Indice!B6="","2XX2",YEAR(Indice!B6)),"2XX2") -> 2020 | C8: =IFERROR(YEAR(Indice!B6-366),"2XX1") -> 2019
A9: Mercaderías | B9: 0 | C9: 0
A10: Productos terminados | B10: 0 | C10: 0
A11: Productos en proceso | B11: 0 | C11: 0
A12: Materia prima | B12: 0 | C12: 0
A13: Compras anticipadas de espacios | B13: 1379142.516 | C13: 1491409.308
A14: (-) Previsión para desvalorización y deterioro de inventario | B14: 0 | C14: 0
A15: Total | B15: =SUM(B9:B14) -> 1379142.516 | C15: =SUM(C9:C14) -> 1491409.308

Sheet Nota 8
A1: =Indice!C1 -> BIEDERMANN PUBLICIDAD S.A. | D1: BG
A4: Nota 8 - INVERSIONES EN ASOCIADAS
A5: En miles de guaraníes
A6: Las inversiones en sociedades donde no se ejerce control se describen a continuación
A7: Periodo | B7: =IFERROR(IF(Indice!B6="","2XX2",YEAR(Indice!B6)),"2XX2") -> 2020 | C7: =IFERROR(YEAR(Indice!B6-366),"2XX1") -> 2019
A8: Total Inversión | B8: 1138287.008 | C8: 1135019.444 | D8: <-- Indicar Monto
A10: a) Datos sobre la sociedad: | G10: a) Datos sobre la inversión:
D11: =IFERROR(IF(Indice!B6="","2XX2",YEAR(Indice!B6)),"2XX2") -> 2020
A12: Nombre de Sociedad | B12: RUC | C12: Cantidad de acciones | D12: Total Patrimonio neto | E12: Total del resultado | G12: Cantidad de acciones | H12: Participación sobre los votos (%) | I12: Total Inversión (miles de Gs) | J12: Participación sobre el Patrimonio Neto (%) | K12: Total valuación patrimonial proporcional | L12: Resultado sobre inversiones
A13: El Barrio Estudio Creativo S.A. | B13: 80054000-0 | C13: 500 | D13: 31507.045 | E13: 1896.11 | G13: 296 | H13: 0.592 | I13: 296000 | J13: =296000000/EVPN!T32 -> 18.89655528 | K13: =J13*D13 -> 595374.6177 | L13: =J13*E13 -> 35829.94744
A14: Cim s.a. | B14: 80023101-5 | C14: 280 | D14: 1889717.302 | E14: 3003.094 | G14: 200 | H14: 0.7143 | I14: 2000000 | J14: =2000000000/EVPN!T32 -> 127.6794276 | K14: =J14*D14 -> 241278023.4 | L14: =J14*E14 -> 383433.3229
K15: 0 | L15: 0
K16: 0 | L16: 0

Sheet Nota 9
A1: =Indice!C1 -> BIEDERMANN PUBLICIDAD S.A. | L1: BG
A5: Obs.:
A6: Incluir aclaraciones en los siguientes casos:
A7: 1. Cuando los bienes de uso tienen alguna restricción sobre su utilización, como por ejemplo cuando están garantizando obligaciones. En su caso también hacer referencia a la nota correspondiente.
A8: 2. Cuando exista alguna previsión por desvalorización (“deterioro”), detallando la evolución de la misma en el transcurso del año.
A9: 3. Si se están capitalizando intereses al costo de bienes de uso. En su caso deberá aclararse la tasa utilizada para la capitalización.
A10: Ver adicionalmente Norma de Información Financiera N° 11 Propiedades, planta y equipo
A12: NOTA 9 - PROPIEDADES, PLANTA Y EQUIPO - NETO
A13: En miles de guaraníes | J13: -1
B15: Costo histórico revaluado al inicio del año | C15: Adquisiciones | D15: Bajas | E15: Revalúo del año técnico | F15: Valor de origen revaluado al final del año | G15: Depreciación acumulada revaluada al inicio del año | H15: Depreciación del año | I15: Bajas de depreciaciones acumuladas | J15: Revalúo depreciación acumulada del año | K15: Depreciación acumulada revaluada al final del año | L15: Valor neto contable
L16: =IFERROR(IF(Indice!B6="","2XX2",YEAR(Indice!B6)),"2XX2") -> 2020 | M16: =IFERROR(YEAR(Indice!B6-366),"2XX1") -> 2019
A17: Instalaciones | B17: 1482429.402 | C17: 0 | D17: 0 | E17: 0 | F17: 0 | G17: 1313825.769 | H17: 110592.042 | I17: 0 | J17: 0 | K17: 0 | L17: =B17+C17+E17-G17-H17 -> 58011.591 | M17: 168603.633
A18: Rodados | B18: 674705.383 | C18: 137672.333 | D18: 0 | E18: 0 | F18: 0 | G18: 396391.541 | H18: 74217.026 | I18: 0 | J18: 0 | K18: 0 | L18: =B18+C18+E18-G18-H18 -> 341769.149 | M18: 278313.842
A19: Equipos de computación | B19: 1136743.03 | C19: 22553.372 | D19: 0 | E19: 0 | F19: 0 | G19: 221110.799 | H19: 191674.623 | I19: 0 | J19: 0 | K19: 0 | L19: 746510.98 | M19: 915632.231
A20: Muebles y útiles | B20: 269218.265 | C20: 5500 | D20: 0 | E20: 0 | F20: 0 | G20: 42460.364 | H20: 24268.832 | I20: 0 | J20: 0 | K20: 0 | L20: 207989.069 | M20: 226757.901
A21: Equipos de comunicación | B21: 0 | C21: 0 | D21: 0 | E21: 0 | F21: 0 | G21: 0 | H21: 0 | I21: 0 | J21: 0 | K21: 0 | L21: 0 | M21: 0
A22: Maquinarias y herramientas | B22: 0 | C22: 0 | D22: 0 | E22: 0 | F22: 0 | G22: 0 | H22: 0 | I22: 0 | J22: 0 | K22: 0 | L22: 0 | M22: 0
A23: Obras en curso | B23: 0 | C23: 0 | D23: 0 | E23: 0 | F23: 0 | G23: 0 | H23: 0 | I23: 0 | J23: 0 | K23: 0 | L23: 0 | M23: 0
A24: Mejoras en Prop.Propia y/o tercer. | B24: 2837085.465 | C24: 32360.909 | D24: 0 | E24: 0 | F24: 0 | G24: 1250555.329 | H24: 482127.876 | I24: 0 | J24: 0 | K24: 0 | L24: 1136763.169 | M24: 1586530.136
A25: Terrenos | B25: 3304457.256 | C25: 0 | D25: 0 | E25: 1134265.284 | F25: 0 | G25: 0 | H25: 0 | I25: 0 | J25: 0 | K25: 0 | L25: 4438722.54 | M25: 3304457.256
A26: Edificios | B26: 7564420.726 | C26: 0 | D26: 0 | E26: 2713191.706 | F26: 0 | G26: 971593.717 | H26: 153975.234 | I26: 0 | J26: 0 | K26: 0 | L26: 9152043.481 | M26: 6592827.009
A27: Totales | B27: =SUM(B17:B26) -> 17269059.53 | C27: =SUM(C17:C26) -> 198086.614 | D27: =SUM(D17:D26) -> 0 | E27: 3847456.99 | F27: 0 | G27: 4195937.519 | H27: 1036855.633 | I27: 0 | J27: 0 | K27: 0 | L27: =SUM($L$17:L26) -> 16081809.98 | M27: =SUM($M$17:M26) -> 13073122.01

Sheet Nota 10
A1: =Indice!C1 -> BIEDERMANN PUBLICIDAD S.A. | C1: BG
A4: NOTA 10 – ACTIVOS DISPONIBLES PARA LA VENTA
B5: En miles de guaranies
B6: =IFERROR(IF(Indice!B6="","2XX2",YEAR(Indice!B6)),"2XX2") -> 2020 | C6: =IFERROR(YEAR(Indice!B6-366),"2XX1") -> 2019
A7: Propiedad, planta y equipo
A8: (Detallar bienes de uso) | B8: 0 | C8: 0
A9: Total | B9: =B8 -> 0 | C9: =C8 -> 0
B10: NO APLICABLE
A11: Activos intangibles
A12: (Detallar activos intangibles) | B12: 0 | C12: 0
A13: Total | B13: =B12 -> 0 | C13: =C12 -> 0
A15: Inversiones
A16: (Detallar Inversiones | B16: 0 | C16: 0
A17: Total | B17: =B16 -> 0 | C17: =C16 -> 0
A19: Total general | B19: =B9+B13+B17 -> 0 | C19: =C9+C13+C17 -> 0

Sheet Nota 11
A1: =Indice!C1 -> BIEDERMANN PUBLICIDAD S.A. | F1: BG
A4: NOTA 11 – ACTIVOS INTANGIBLES
B5: En miles de guaranies
A6: Activos intangibles | B6: =IFERROR(IF(Indice!B6="","2XX2",YEAR(Indice!B6)),"2XX2") -> 2020 | C6: =IFERROR(YEAR(Indice!B6-366),"2XX1") -> 2019
A7: Sistemas, Licencias y Software | B7: 555252.359 | C7: 555252.359
A8: Usufructo espacio en palco | B8: 222680 | C8: 222680
A9: Desarrollo Sitio Web | B9: 8972.727 | C9: 8972.727
A10: Sist., Licencias y Software II | B10: 149484.547 | C10: 149484.547
A11: 4Usufructo parcelas | B11: 103057.92 | C11: 103057.92
A12: Menos amortización acumulada | B12: -824718.381 | C12: -692652.645
A14: Total general | B14: =SUM(B7:B13) -> 214729.172 | C14: =SUM(C7:C13) -> 346794.908

Sheet Nota 12
A1: =Indice!C1 -> BIEDERMANN PUBLICIDAD S.A. | E1: BG
B3: NO APLICABLE
A5: NOTA 12 – GOODWILL
B6: En miles de guaranies
A7: Goodwill | B7: =IFERROR(IF(Indice!B6="","2XX2",YEAR(Indice!B6)),"2XX2") -> 2020 | C7: =IFERROR(YEAR(Indice!B6-366),"2XX1") -> 2019
B8: 0 | C8: 0
B9: 0 | C9: 0
B10: 0 | C10: 0
A11: Total general | B11: =SUM(B8:B10) -> 0 | C11: =SUM(C8:C10) -> 0

Sheet Nota 13
A1: =Indice!C1 -> BIEDERMANN PUBLICIDAD S.A. | C1: BG
A4: NOTA 13 – CUENTAS POR PAGAR COMERCIALES
A5: En miles de guaranies
A6: Las cuentas por pagar comerciales se componen como sigue:
A8: Corrientes | B8: Simbología según ISO 4217 | C8: Indicación de Moneda | D8: =IFERROR(IF(Indice!B6="","2XX2",YEAR(Indice!B6)),"2XX2") -> 2020 | E8: =IFERROR(YEAR(Indice!B6-366),"2XX1") -> 2019
A9: Proveedores - Entidades Relacionadas | B9: PYG | C9: =IFERROR(VLOOKUP(B9,'[1]Base de Monedas'!A:B,2,0),"") -> Guaraní | D9: 320093.318 | E9: 118332.895
A10: Otros proveedores del exterior | B10: USD | C10: =IFERROR(VLOOKUP(B10,'[1]Base de Monedas'!A:B,2,0),"") -> Dólar estadounidense | D10: 1278895.132 | E10: 914176.992
A11: Proveedores locales | B11: PYG | C11: =IFERROR(VLOOKUP(B11,'[1]Base de Monedas'!A:B,2,0),"") -> Guaraní | D11: =9762747.996-2044517.678-1005490.822-453302.461 -> 6259437.035 | E11: 4929519.23
A12: Anticipo de Clientes | B12: PYG | C12: =IFERROR(VLOOKUP(B12,'[1]Base de Monedas'!A:B,2,0),"") -> Guaraní | D12: 445529.228 | E12: 70560.141
A13: Total cuentas a pagar por comerciales | B13: PYG | C13: =IFERROR(VLOOKUP(B13,'[1]Base de Monedas'!A:B,2,0),"") -> Guaraní | D13: =SUM($D$9:D12) -> 8303954.713 | E13: =SUM($E$9:E12) -> 6032589.258
A17: No Corrientes | B17: Simbología según ISO 4217 | C17: Indicación de Moneda | D17: =IFERROR(YEAR(Indice!B6),"2XX2") -> 2020 | E17: =IFERROR(YEAR(Indice!B6-366),"2XX1") -> 2019
A18: Proveedores - Entidades Relacionadas | B18: PYG | C18: =IFERROR(VLOOKUP(B18,'[1]Base de Monedas'!A:B,2,0),"") -> Guaraní | D18: 0 | E18: 0
A19: Otros proveedores del exterior | B19: USD | C19: =IFERROR(VLOOKUP(B19,'[1]Base de Monedas'!A:B,2,0),"") -> Dólar estadounidense | D19: 0 | E19: 0
A20: Proveedores locales | B20: PYG | C20: =IFERROR(VLOOKUP(B20,'[1]Base de Monedas'!A:B,2,0),"") -> Guaraní | D20: 0 | E20: 0
A21: (nuevas cuentas a incluir) | C21: =IFERROR(VLOOKUP(B21,'Base de Monedas'!A:B,2,0),"") -> 
A22: Total cuentas a pagar por comerciales | D22: =SUM($D$18:D20) -> 0 | E22: =SUM($E$18:E20) -> 0

Sheet Nota 14
A1: =Indice!C1 -> BIEDERMANN PUBLICIDAD S.A. | E1: BG | L1: BG
A4: NOTA 14 – PRESTAMOS A CORTO Y LARGO PLAZO
A6: (a) Equivalentes al tipo de cambio referencial de la fecha de presentacion
A7: (b) Obligaciones garantizadas por valor de guaraníes………..
A9: Corrientes
D10: =IFERROR(IF(Indice!B6="","2XX2",YEAR(Indice!B6)),"2XX2") -> 2020 | J10: =IFERROR(YEAR(Indice!B6-366),"2XX1") -> 2019
A11: Préstamos de Entidades Locales | B11: Vencimiento | C11: Símbolo de Moneda | D11: Moneda | E11: Importe (miles de Gs) | F11: Tipo de Garantía | H11: Vencimiento | I11: Símbolo de Moneda | J11: Moneda | K11: Importe (miles de Gs) | L11: Tipo de Garantía
A12: Nombre de la entidad financiera
A13: BANCO BASA S.A. | B13: 2025-04-04 | C13: PYG | D13: =IFERROR(VLOOKUP(C13,'[1]Base de Monedas'!A:B,2,0),"") -> Guaraní | E13: 793341.032 | F13: Hipotecaria | H13: 2021-01-04 | I13: PYG | J13: =IFERROR(VLOOKUP(I13,'[1]Base de Monedas'!A:B,2,0),"") -> Guaraní | K13: 2270716.485 | L13: Hipotecaria
A14: BANCO BASA S.A. | C14: PYG | D14: =IFERROR(VLOOKUP(C14,'[1]Base de Monedas'!A:B,2,0),"") -> Guaraní | E14: 0 | H14: 2020-09-18 | I14: PYG | J14: =IFERROR(VLOOKUP(I14,'[1]Base de Monedas'!A:B,2,0),"") -> Guaraní | K14: 629263.819 | L14: Sola Firma
A15: BANCO BASA S.A. | C15: PYG | D15: =IFERROR(VLOOKUP(C15,'[1]Base de Monedas'!A:B,2,0),"") -> Guaraní | E15: 0 | H15: 2020-05-27 | I15: PYG | J15: =IFERROR(VLOOKUP(I15,'[1]Base de Monedas'!A:B,2,0),"") -> Guaraní | K15: 324953.133 | L15: Sola Firma
A16: BANCO BASA S.A. | C16: PYG | D16: =IFERROR(VLOOKUP(C16,'[1]Base de Monedas'!A:B,2,0),"") -> Guaraní | E16: 0 | H16: 2020-08-28 | I16: PYG | J16: =IFERROR(VLOOKUP(I16,'[1]Base de Monedas'!A:B,2,0),"") -> Guaraní | K16: 571803.982 | L16: Sola Firma
A17: BANCO GNB | B17: 2023-09-25 | C17: PYG | D17: =IFERROR(VLOOKUP(C17,'[1]Base de Monedas'!A:B,2,0),"") -> Guaraní | E17: 369655.963 | F17: Sola Firma | H17: 2020-01-30 | I17: PYG | J17: =IFERROR(VLOOKUP(I17,'[1]Base de Monedas'!A:B,2,0),"") -> Guaraní | K17: 106901.756 | L17: Sola Firma
A18: BANCO GNB | C18: PYG | D18: =IFERROR(VLOOKUP(C18,'[1]Base de Monedas'!A:B,2,0),"") -> Guaraní | E18: 0 | H18: 2020-02-01 | I18: PYG | J18: =IFERROR(VLOOKUP(I18,'[1]Base de Monedas'!A:B,2,0),"") -> Guaraní | K18: 109672.525 | L18: Sola Firma
A19: BANCO GNB | C19: PYG | D19: =IFERROR(VLOOKUP(C19,'[1]Base de Monedas'!A:B,2,0),"") -> Guaraní | E19: 0 | H19: 2020-02-29 | I19: PYG | J19: =IFERROR(VLOOKUP(I19,'[1]Base de Monedas'!A:B,2,0),"") -> Guaraní | K19: 177565.042 | L19: Sola Firma
A20: BANCO GNB | C20: PYG | D20: =IFERROR(VLOOKUP(C20,'[1]Base de Monedas'!A:B,2,0),"") -> Guaraní | E20: 0 | H20: 2020-03-25 | I20: PYG | J20: =IFERROR(VLOOKUP(I20,'[1]Base de Monedas'!A:B,2,0),"") -> Guaraní | K20: 219756.039 | L20: Sola Firma
A21: BANCO GNB | C21: PYG | D21: =IFERROR(VLOOKUP(C21,'[1]Base de Monedas'!A:B,2,0),"") -> Guaraní | E21: 0 | H21: 2020-06-30 | I21: PYG | J21: =IFERROR(VLOOKUP(I21,'[1]Base de Monedas'!A:B,2,0),"") -> Guaraní | K21: 434784.287 | L21: Sola Firma
A22: BANCO GNB | C22: PYG | D22: =IFERROR(VLOOKUP(C22,'[1]Base de Monedas'!A:B,2,0),"") -> Guaraní | E22: 0 | H22: 2020-05-24 | I22: PYG | J22: =IFERROR(VLOOKUP(I22,'[1]Base de Monedas'!A:B,2,0),"") -> Guaraní | K22: 230839.178 | L22: Sola Firma
A23: BANCO GNB | C23: PYG | D23: =IFERROR(VLOOKUP(C23,'[1]Base de Monedas'!A:B,2,0),"") -> Guaraní | E23: 0 | H23: 2020-06-12 | I23: PYG | J23: =IFERROR(VLOOKUP(I23,'[1]Base de Monedas'!A:B,2,0),"") -> Guaraní | K23: 219447.01 | L23: Sola Firma
A24: BANCO ITAU | B24: 2021-03-29 | C24: PYG | D24: =IFERROR(VLOOKUP(C24,'[1]Base de Monedas'!A:B,2,0),"") -> Guaraní | E24: 200000 | F24: Sola Firma | I24: PYG | J24: =IFERROR(VLOOKUP(I24,'[1]Base de Monedas'!A:B,2,0),"") -> Guaraní | K24: 0
A25: BANCO NACIONAL DE FOMENTO | B25: 2021-06-10 | C25: PYG | D25: =IFERROR(VLOOKUP(C25,'[1]Base de Monedas'!A:B,2,0),"") -> Guaraní | E25: 3000000 | F25: Sola Firma | I25: PYG | J25: =IFERROR(VLOOKUP(I25,'[1]Base de Monedas'!A:B,2,0),"") -> Guaraní | K25: 0
A26: BANCO REGIONAL | B26: 2022-05-20 | C26: PYG | D26: =IFERROR(VLOOKUP(C26,'[1]Base de Monedas'!A:B,2,0),"") -> Guaraní | E26: 688783.75 | F26: Sola Firma | H26: 2020-04-25 | I26: PYG | J26: =IFERROR(VLOOKUP(I26,'[1]Base de Monedas'!A:B,2,0),"") -> Guaraní | K26: 247151.541 | L26: Sola Firma
A27: BANCO REGIONAL | C27: PYG | D27: =IFERROR(VLOOKUP(C27,'[1]Base de Monedas'!A:B,2,0),"") -> Guaraní | E27: 0 | H27: 2020-03-14 | I27: PYG | J27: =IFERROR(VLOOKUP(I27,'[1]Base de Monedas'!A:B,2,0),"") -> Guaraní | K27: 114534.246 | L27: Sola Firma
A28: BANCO REGIONAL | C28: PYG | D28: =IFERROR(VLOOKUP(C28,'[1]Base de Monedas'!A:B,2,0),"") -> Guaraní | E28: 0 | H28: 2020-01-20 | I28: PYG | J28: =IFERROR(VLOOKUP(I28,'[1]Base de Monedas'!A:B,2,0),"") -> Guaraní | K28: 36782.147 | L28: Sola Firma
A29: BANCO REGIONAL | C29: PYG | D29: =IFERROR(VLOOKUP(C29,'[1]Base de Monedas'!A:B,2,0),"") -> Guaraní | E29: 0 | H29: 2020-04-13 | I29: PYG | J29: =IFERROR(VLOOKUP(I29,'[1]Base de Monedas'!A:B,2,0),"") -> Guaraní | K29: 172059.003 | L29: Sola Firma
A30: BANCO REGIONAL | C30: PYG | D30: =IFERROR(VLOOKUP(C30,'[1]Base de Monedas'!A:B,2,0),"") -> Guaraní | E30: 0 | H30: 2020-05-16 | I30: PYG | J30: =IFERROR(VLOOKUP(I30,'[1]Base de Monedas'!A:B,2,0),"") -> Guaraní | K30: 300965.34 | L30: Sola Firma
A31: BANCO REGIONAL | C31: PYG | D31: =IFERROR(VLOOKUP(C31,'[1]Base de Monedas'!A:B,2,0),"") -> Guaraní | E31: 0 | H31: 2020-06-16 | I31: PYG | J31: =IFERROR(VLOOKUP(I31,'[1]Base de Monedas'!A:B,2,0),"") -> Guaraní | K31: 237347.397 | L31: Sola Firma
A32: BANCO RIO SAECA | B32: 2021-04-14 | C32: PYG | D32: =IFERROR(VLOOKUP(C32,'[1]Base de Monedas'!A:B,2,0),"") -> Guaraní | E32: 400000 | F32: Sola Firma | H32: 2020-01-07 | I32: PYG | J32: =IFERROR(VLOOKUP(I32,'[1]Base de Monedas'!A:B,2,0),"") -> Guaraní | K32: 105984.541 | L32: Sola Firma
A33: BANCO RIO SAECA | C33: PYG | D33: =IFERROR(VLOOKUP(C33,'[1]Base de Monedas'!A:B,2,0),"") -> Guaraní | E33: 0 | H33: 2020-04-12 | I33: PYG | J33: =IFERROR(VLOOKUP(I33,'[1]Base de Monedas'!A:B,2,0),"") -> Guaraní | K33: 415069.416 | L33: Sola Firma
A34: FIC S.A. DE FINANZAS | B34: 2023-04-26 | C34: PYG | D34: =IFERROR(VLOOKUP(C34,'[1]Base de Monedas'!A:B,2,0),"") -> Guaraní | E34: 645000 | F34: Sola Firma | H34: 2020-08-19 | I34: PYG | J34: =IFERROR(VLOOKUP(I34,'[1]Base de Monedas'!A:B,2,0),"") -> Guaraní | K34: 1243944.216 | L34: Sola Firma
A35: FIC S.A. DE FINANZAS | C35: PYG | D35: =IFERROR(VLOOKUP(C35,'[1]Base de Monedas'!A:B,2,0),"") -> Guaraní | E35: 0 | H35: 2020-02-01 | I35: PYG | J35: =IFERROR(VLOOKUP(I35,'[1]Base de Monedas'!A:B,2,0),"") -> Guaraní | K35: 216876.416 | L35: Sola Firma
A36: FIC S.A. DE FINANZAS | C36: PYG | D36: =IFERROR(VLOOKUP(C36,'[1]Base de Monedas'!A:B,2,0),"") -> Guaraní | E36: 0 | H36: 2020-03-06 | I36: PYG | J36: =IFERROR(VLOOKUP(I36,'[1]Base de Monedas'!A:B,2,0),"") -> Guaraní | K36: 485407.259 | L36: Sola Firma
A37: FIC S.A. DE FINANZAS- refinanc. | C37: PYG | D37: =IFERROR(VLOOKUP(C37,'[1]Base de Monedas'!A:B,2,0),"") -> Guaraní | E37: 0 | H37: 2020-09-06 | I37: PYG | J37: =IFERROR(VLOOKUP(I37,'[1]Base de Monedas'!A:B,2,0),"") -> Guaraní | K37: 943273.863 | L37: Sola Firma
A38: FINANCIERA CEFISA SAECA | B38: 2023-03-17 | C38: PYG | D38: =IFERROR(VLOOKUP(C38,'[1]Base de Monedas'!A:B,2,0),"") -> Guaraní | E38: 298475.122 | F38: Sola Firma | H38: 2020-10-09 | I38: PYG | J38: =IFERROR(VLOOKUP(I38,'[1]Base de Monedas'!A:B,2,0),"") -> Guaraní | K38: 926592.693 | L38: Sola Firma
A39: FINANCIERA EL COMERCIO S.A.E.C.A. | B39: 2021-04-01 | C39: PYG | D39: =IFERROR(VLOOKUP(C39,'[1]Base de Monedas'!A:B,2,0),"") -> Guaraní | E39: 995480.136 | F39: Sola Firma | H39: 2020-01-05 | I39: PYG | J39: =IFERROR(VLOOKUP(I39,'[1]Base de Monedas'!A:B,2,0),"") -> Guaraní | K39: 43450.47 | L39: Sola Firma
A40: FINANCIERA EL COMERCIO S.A.E.C.A. | C40: PYG | D40: =IFERROR(VLOOKUP(C40,'[1]Base de Monedas'!A:B,2,0),"") -> Guaraní | E40: 0 | H40: 2020-02-12 | I40: PYG | J40: =IFERROR(VLOOKUP(I40,'[1]Base de Monedas'!A:B,2,0),"") -> Guaraní | K40: 216031.993 | L40: Sola Firma
A41: FINANCIERA EL COMERCIO S.A.E.C.A. | C41: PYG | D41: =IFERROR(VLOOKUP(C41,'[1]Base de Monedas'!A:B,2,0),"") -> Guaraní | E41: 0 | H41: 2020-01-01 | I41: PYG | J41: =IFERROR(VLOOKUP(I41,'[1]Base de Monedas'!A:B,2,0),"") -> Guaraní | K41: 39880.596 | L41: Sola Firma
A42: FINANCIERA EL COMERCIO S.A.E.C.A. | C42: PYG | D42: =IFERROR(VLOOKUP(C42,'[1]Base de Monedas'!A:B,2,0),"") -> Guaraní | E42: 0 | H42: 2020-04-04 | I42: PYG | J42: =IFERROR(VLOOKUP(I42,'[1]Base de Monedas'!A:B,2,0),"") -> Guaraní | K42: 259215.968 | L42: Sola Firma
A43: FINANCIERA EL COMERCIO S.A.E.C.A. | C43: PYG | D43: =IFERROR(VLOOKUP(C43,'[1]Base de Monedas'!A:B,2,0),"") -> Guaraní | E43: 0 | H43: 2020-04-21 | I43: PYG | J43: =IFERROR(VLOOKUP(I43,'[1]Base de Monedas'!A:B,2,0),"") -> Guaraní | K43: 278300.548 | L43: Sola Firma
A44: FINANCIERA EL COMERCIO S.A.E.C.A. | C44: PYG | D44: =IFERROR(VLOOKUP(C44,'[1]Base de Monedas'!A:B,2,0),"") -> Guaraní | E44: 0 | H44: 2020-05-15 | I44: PYG | J44: =IFERROR(VLOOKUP(I44,'[1]Base de Monedas'!A:B,2,0),"") -> Guaraní | K44: 296196.44 | L44: Sola Firma
A45: FINANCIERA EL COMERCIO S.A.E.C.A. | C45: PYG | D45: =IFERROR(VLOOKUP(C45,'[1]Base de Monedas'!A:B,2,0),"") -> Guaraní | E45: 0 | H45: 2020-06-10 | I45: PYG | J45: =IFERROR(VLOOKUP(I45,'[1]Base de Monedas'!A:B,2,0),"") -> Guaraní | K45: 199318.982 | L45: Sola Firma
A46: FINANCIERA EL COMERCIO S.A.E.C.A. | C46: PYG | D46: =IFERROR(VLOOKUP(C46,'[1]Base de Monedas'!A:B,2,0),"") -> Guaraní | E46: 0 | H46: 2020-06-18 | I46: PYG | J46: =IFERROR(VLOOKUP(I46,'[1]Base de Monedas'!A:B,2,0),"") -> Guaraní | K46: 226254.052 | L46: Sola Firma
A47: FINLATINA S.A. DE FINANZAS | B47: 2021-05-28 | C47: PYG | D47: =IFERROR(VLOOKUP(C47,'[1]Base de Monedas'!A:B,2,0),"") -> Guaraní | E47: 1391247.859 | F47: Sola Firma | H47: 2020-01-11 | I47: PYG | J47: =IFERROR(VLOOKUP(I47,'[1]Base de Monedas'!A:B,2,0),"") -> Guaraní | K47: 78250 | L47: Sola Firma
A48: FINLATINA S.A. DE FINANZAS | B48: 2021-05-28 | C48: PYG | D48: =IFERROR(VLOOKUP(C48,'[1]Base de Monedas'!A:B,2,0),"") -> Guaraní | E48: 459644.012 | F48: Sola Firma | H48: 2020-02-10 | I48: PYG | J48: =IFERROR(VLOOKUP(I48,'[1]Base de Monedas'!A:B,2,0),"") -> Guaraní | K48: 107000 | L48: Sola Firma
A49: FINLATINA S.A. DE FINANZAS | B49: 2021-07-10 | C49: PYG | D49: =IFERROR(VLOOKUP(C49,'[1]Base de Monedas'!A:B,2,0),"") -> Guaraní | E49: 824923.399 | F49: Sola Firma | H49: 2020-02-21 | I49: PYG | J49: =IFERROR(VLOOKUP(I49,'[1]Base de Monedas'!A:B,2,0),"") -> Guaraní | K49: 106724.966 | L49: Sola Firma
A50: FINLATINA S.A. DE FINANZAS | B50: 2021-05-07 | C50: PYG | D50: =IFERROR(VLOOKUP(C50,'[1]Base de Monedas'!A:B,2,0),"") -> Guaraní | E50: 253731.258 | F50: Sola Firma | H50: 2020-07-09 | I50: PYG | J50: =IFERROR(VLOOKUP(I50,'[1]Base de Monedas'!A:B,2,0),"") -> Guaraní | K50: 670592.622 | L50: Sola Firma
A51: FINLATINA S.A. DE FINANZAS | C51: PYG | D51: =IFERROR(VLOOKUP(C51,'[1]Base de Monedas'!A:B,2,0),"") -> Guaraní | E51: 0 | H51: 2021-10-10 | I51: PYG | J51: =IFERROR(VLOOKUP(I51,'[1]Base de Monedas'!A:B,2,0),"") -> Guaraní | K51: 258743.736 | L51: Sola Firma
A52: FINLATINA S.A. DE FINANZAS | C52: PYG | D52: =IFERROR(VLOOKUP(C52,'[1]Base de Monedas'!A:B,2,0),"") -> Guaraní | E52: 0 | H52: 2020-10-10 | I52: PYG | J52: =IFERROR(VLOOKUP(I52,'[1]Base de Monedas'!A:B,2,0),"") -> Guaraní | K52: 494633.09 | L52: Sola Firma
A53: FINLATINA S.A. DE FINANZAS | C53: PYG | D53: =IFERROR(VLOOKUP(C53,'[1]Base de Monedas'!A:B,2,0),"") -> Guaraní | E53: 0 | H53: 2020-11-10 | I53: PYG | J53: =IFERROR(VLOOKUP(I53,'[1]Base de Monedas'!A:B,2,0),"") -> Guaraní | K53: 465246.166 | L53: Sola Firma
A54: FINLATINA S.A. DE FINANZAS | C54: PYG | D54: =IFERROR(VLOOKUP(C54,'[1]Base de Monedas'!A:B,2,0),"") -> Guaraní | E54: 0 | H54: 2020-12-10 | I54: PYG | J54: =IFERROR(VLOOKUP(I54,'[1]Base de Monedas'!A:B,2,0),"") -> Guaraní | K54: 264142.476 | L54: Sola Firma
A55: FINLATINA S.A. DE FINANZAS | C55: PYG | D55: =IFERROR(VLOOKUP(C55,'[1]Base de Monedas'!A:B,2,0),"") -> Guaraní | E55: 0 | H55: 2020-12-10 | I55: PYG | J55: =IFERROR(VLOOKUP(I55,'[1]Base de Monedas'!A:B,2,0),"") -> Guaraní | K55: 171170.208 | L55: Sola Firma
A56: FINLATINA S.A. DE FINANZAS | C56: PYG | D56: =IFERROR(VLOOKUP(C56,'[1]Base de Monedas'!A:B,2,0),"") -> Guaraní | E56: 0 | H56: 2020-06-16 | I56: PYG | J56: =IFERROR(VLOOKUP(I56,'[1]Base de Monedas'!A:B,2,0),"") -> Guaraní | K56: 315394.5 | L56: Sola Firma
A57: INTERFISA BANCO | B57: 2021-12-13 | C57: PYG | D57: =IFERROR(VLOOKUP(C57,'[1]Base de Monedas'!A:B,2,0),"") -> Guaraní | E57: 204140.316 | F57: Sola Firma | H57: 2020-09-25 | I57: PYG | J57: =IFERROR(VLOOKUP(I57,'[1]Base de Monedas'!A:B,2,0),"") -> Guaraní | K57: 937231.31 | L57: Sola Firma
A58: INTERFISA BANCO | B58: 2021-12-13 | C58: PYG | D58: =IFERROR(VLOOKUP(C58,'[1]Base de Monedas'!A:B,2,0),"") -> Guaraní | E58: 394127.587 | F58: Sola Firma | I58: PYG | J58: =IFERROR(VLOOKUP(I58,'[1]Base de Monedas'!A:B,2,0),"") -> Guaraní | K58: 0
A59: INTERFISA BANCO | B59: 2022-03-09 | C59: PYG | D59: =IFERROR(VLOOKUP(C59,'[1]Base de Monedas'!A:B,2,0),"") -> Guaraní | E59: 22351.743 | F59: Sola Firma | I59: PYG | J59: =IFERROR(VLOOKUP(I59,'[1]Base de Monedas'!A:B,2,0),"") -> Guaraní | K59: 0
A60: SOBREGIRO | B60: 2021-01-31 | C60: PYG | D60: =IFERROR(VLOOKUP(C60,'[1]Base de Monedas'!A:B,2,0),"") -> Guaraní | E60: 727310.044 | F60: Sola Firma | H60: 2020-01-15 | I60: PYG | J60: =IFERROR(VLOOKUP(I60,'[1]Base de Monedas'!A:B,2,0),"") -> Guaraní | K60: 793745.046 | L60: Sola Firma
A61: TU FINANCIERA | B61: 2021-05-20 | C61: PYG | D61: =IFERROR(VLOOKUP(C61,'[1]Base de Monedas'!A:B,2,0),"") -> Guaraní | E61: 310209.031 | F61: Sola Firma | H61: 2021-05-20 | I61: PYG | J61: =IFERROR(VLOOKUP(I61,'[1]Base de Monedas'!A:B,2,0),"") -> Guaraní | K61: 778218.672 | L61: Sola Firma
A62: TU FINANCIERA | B62: 2021-07-21 | C62: PYG | D62: =IFERROR(VLOOKUP(C62,'[1]Base de Monedas'!A:B,2,0),"") -> Guaraní | E62: 129703.112 | F62: Sola Firma | K62: 0
A63: TU FINANCIERA | B63: 2021-09-03 | C63: PYG | D63: =IFERROR(VLOOKUP(C63,'[1]Base de Monedas'!A:B,2,0),"") -> Guaraní | E63: 234808.677 | F63: Sola Firma | K63: 0
A64: VISIÓN BANCO S.A.E.C.A. | B64: 2021-03-05 | C64: PYG | D64: =IFERROR(VLOOKUP(C64,'[1]Base de Monedas'!A:B,2,0),"") -> Guaraní | E64: 276825.706 | F64: Sola Firma | H64: 2020-06-10 | I64: PYG | J64: =IFERROR(VLOOKUP(I64,'[1]Base de Monedas'!A:B,2,0),"") -> Guaraní | K64: 353823.379 | L64: Sola Firma
A65: VISIÓN BANCO S.A.E.C.A. | C65: PYG | D65: =IFERROR(VLOOKUP(C65,'[1]Base de Monedas'!A:B,2,0),"") -> Guaraní | E65: 0 | H65: 2020-04-09 | I65: PYG | J65: =IFERROR(VLOOKUP(I65,'[1]Base de Monedas'!A:B,2,0),"") -> Guaraní | K65: 174542.66 | L65: Sola Firma
A66: Deudas bursátiles | J66: =IFERROR(VLOOKUP(I66,'Base de Monedas'!A:B,2,0),"") -> 
A67: BONOS SERIE II | B67: 2021-12-03 | C67: PYG | D67: =IFERROR(VLOOKUP(C67,'[1]Base de Monedas'!A:B,2,0),"") -> Guaraní | E67: 3130000 | F67: Sola Firma | H67: 2021-12-03 | I67: PYG | J67: =IFERROR(VLOOKUP(I67,'[1]Base de Monedas'!A:B,2,0),"") -> Guaraní | K67: 499427.943 | L67: Sola Firma
A68: Préstamos de Entidades en el Exterior | D68: =IFERROR(VLOOKUP(C68,'Base de Monedas'!A:B,2,0),"") ->  | J68: =IFERROR(VLOOKUP(I68,'Base de Monedas'!A:B,2,0),"") -> 
A69: Nombre de la entidad financiera | D69: =IFERROR(VLOOKUP(C69,'Base de Monedas'!A:B,2,0),"") ->  | J69: =IFERROR(VLOOKUP(I69,'Base de Monedas'!A:B,2,0),"") -> 
A70: Nombre de la entidad financiera | D70: =IFERROR(VLOOKUP(C70,'Base de Monedas'!A:B,2,0),"") ->  | J70: =IFERROR(VLOOKUP(I70,'Base de Monedas'!A:B,2,0),"") -> 
A71: (incluir otras entidades) | D71: =IFERROR(VLOOKUP(C71,'Base de Monedas'!A:B,2,0),"") ->  | J71: =IFERROR(VLOOKUP(I71,'Base de Monedas'!A:B,2,0),"") -> 
A72: Deudas bursátiles | D72: =IFERROR(VLOOKUP(C72,'Base de Monedas'!A:B,2,0),"") ->  | J72: =IFERROR(VLOOKUP(I72,'Base de Monedas'!A:B,2,0),"") -> 
A73: (Incluir programas de forma individual) | D73: =IFERROR(VLOOKUP(C73,'Base de Monedas'!A:B,2,0),"") ->  | J73: =IFERROR(VLOOKUP(I73,'Base de Monedas'!A:B,2,0),"") -> 
A74: Intereses préstamos entidades financieras a pagar | D74: =IFERROR(VLOOKUP(C74,'Base de Monedas'!A:B,2,0),"") ->  | J74: =IFERROR(VLOOKUP(I74,'Base de Monedas'!A:B,2,0),"") -> 
A75: Intereses a pagar | D75: =IFERROR(VLOOKUP(C75,'Base de Monedas'!A:B,2,0),"") ->  | J75: =IFERROR(VLOOKUP(I75,'Base de Monedas'!A:B,2,0),"") -> 
A76: (-) Intereses a Devengar
A77: Intereses deudas bursátiles a pagar | D77: =IFERROR(VLOOKUP(C77,'Base de Monedas'!A:B,2,0),"") -> 
A78: Intereses a pagar | D78: =IFERROR(VLOOKUP(C78,'Base de Monedas'!A:B,2,0),"") -> 
A79: (-) Intereses a Devengar | D79: =IFERROR(VLOOKUP(C79,'Base de Monedas'!A:B,2,0),"") -> 
A80: Total | D80: =IFERROR(VLOOKUP(C80,'Base de Monedas'!A:B,2,0),"") ->  | E80: =SUM($E$12:E79)-'Nota 15'!B15 -> 12954502.88 | K80: =SUM($K$12:K79)-'Nota 15'!C15 -> 14962120.32
A83: No Corrientes
D84: =IFERROR(YEAR(Indice!B6),"2XX2") -> 2020 | J84: =IFERROR(YEAR(Indice!B6-366),"2XX1") -> 2019
A85: Préstamos de Entidades Locales | B85: Vencimiento | C85: Símbolo de Moneda | D85: Moneda | E85: Importe (miles de Gs) | F85: Tipo de garantía | H85: Vencimiento | I85: Símbolo de Moneda | J85: Moneda | K85: Importe (miles de Gs) | L85: Tipo de Garantía
A86: FINLATINA S.A. DE FINANZAS | C86: PYG | D86: =IFERROR(VLOOKUP(C86,'[1]Base de Monedas'!A:B,2,0),"") -> Guaraní | E86: 0 | H86: 2021-10-10 | I86: PYG | J86: =IFERROR(VLOOKUP(I86,'[1]Base de Monedas'!A:B,2,0),"") -> Guaraní | K86: =10*21561.978+22011.873*5+14264.184*6 -> 411264.249 | L86: Sola Firma
A87: TU FINANCIERA | C87: PYG | D87: =IFERROR(VLOOKUP(C87,'[1]Base de Monedas'!A:B,2,0),"") -> Guaraní | E87: 0 | H87: 2021-05-20 | I87: PYG | J87: =IFERROR(VLOOKUP(I87,'[1]Base de Monedas'!A:B,2,0),"") -> Guaraní | K87: =310163.322+14094.458 -> 324257.78 | L87: Sola Firma
A88: BANCO BASA S.A. | B88: 2025-04-04 | C88: PYG | D88: =IFERROR(VLOOKUP(C88,'[1]Base de Monedas'!A:B,2,0),"") -> Guaraní | E88: 3552285.706 | F88: Hipotecaria | I88: PYG | J88: =IFERROR(VLOOKUP(I88,'[1]Base de Monedas'!A:B,2,0),"") -> Guaraní | K88: 0
A89: BANCO GNB | B89: 2023-09-25 | C89: PYG | D89: =IFERROR(VLOOKUP(C89,'[1]Base de Monedas'!A:B,2,0),"") -> Guaraní | E89: 728256.26 | F89: Sola Firma | I89: PYG | J89: =IFERROR(VLOOKUP(I89,'[1]Base de Monedas'!A:B,2,0),"") -> Guaraní | K89: 0
A90: BANCO REGIONAL | B90: 2022-05-20 | C90: PYG | D90: =IFERROR(VLOOKUP(C90,'[1]Base de Monedas'!A:B,2,0),"") -> Guaraní | E90: 286993.225 | F90: Sola Firma | I90: PYG | J90: =IFERROR(VLOOKUP(I90,'[1]Base de Monedas'!A:B,2,0),"") -> Guaraní | K90: 0
A91: FIC S.A. | B91: 2023-12-18 | C91: PYG | D91: =IFERROR(VLOOKUP(C91,'[1]Base de Monedas'!A:B,2,0),"") -> Guaraní | E91: 2588406.322 | F91: Sola Firma | I91: PYG | J91: =IFERROR(VLOOKUP(I91,'[1]Base de Monedas'!A:B,2,0),"") -> Guaraní | K91: 0
A92: FINANCIERA CEFISA SAECA | B92: 2023-03-17 | C92: PYG | D92: =IFERROR(VLOOKUP(C92,'[1]Base de Monedas'!A:B,2,0),"") -> Guaraní | E92: 716009.382 | F92: Sola Firma | I92: PYG | J92: =IFERROR(VLOOKUP(I92,'[1]Base de Monedas'!A:B,2,0),"") -> Guaraní | K92: 0
A93: FINANCIERA EL COMERCIO S.A.E.C.A. | B93: 2022-04-01 | C93: PYG | D93: =IFERROR(VLOOKUP(C93,'[1]Base de Monedas'!A:B,2,0),"") -> Guaraní | E93: 347001.661 | F93: Sola Firma | I93: PYG | J93: =IFERROR(VLOOKUP(I93,'[1]Base de Monedas'!A:B,2,0),"") -> Guaraní | K93: 0
A94: INTERFISA BANCO S.A. | B94: 2021-12-13 | C94: PYG | D94: =IFERROR(VLOOKUP(C94,'[1]Base de Monedas'!A:B,2,0),"") -> Guaraní | E94: 227851.84 | F94: Sola Firma | I94: PYG | J94: =IFERROR(VLOOKUP(I94,'[1]Base de Monedas'!A:B,2,0),"") -> Guaraní | K94: 0
A95: VISIÓN BANCO S.A.E.C.A. | B95: 2023-03-05 | C95: PYG | D95: =IFERROR(VLOOKUP(C95,'[1]Base de Monedas'!A:B,2,0),"") -> Guaraní | E95: 762696.842 | F95: Sola Firma | I95: PYG | J95: =IFERROR(VLOOKUP(I95,'[1]Base de Monedas'!A:B,2,0),"") -> Guaraní | K95: 0
A96: Deudas bursátiles | D96: =IFERROR(VLOOKUP(C96,'Base de Monedas'!A:B,2,0),"") ->  | I96: PYG | J96: =IFERROR(VLOOKUP(I96,'[1]Base de Monedas'!A:B,2,0),"") -> Guaraní | K96: 0
A97: BONOS SERIE II | C97: PYG | D97: =IFERROR(VLOOKUP(C97,'[1]Base de Monedas'!A:B,2,0),"") -> Guaraní | E97: 0 | H97: 2021-12-03 | I97: PYG | J97: =IFERROR(VLOOKUP(I97,'[1]Base de Monedas'!A:B,2,0),"") -> Guaraní | K97: =3130000+971414.792-124856.985*4-0.004 -> 3601986.848 | L97: Sola Firma
A98: Préstamos de Entidades en el Exterior | D98: =IFERROR(VLOOKUP(C98,'Base de Monedas'!A:B,2,0),"") ->  | J98: =IFERROR(VLOOKUP(I98,'Base de Monedas'!A:B,2,0),"") -> 
A99: Nombre de la entidad financiera | D99: =IFERROR(VLOOKUP(C99,'Base de Monedas'!A:B,2,0),"") ->  | J99: =IFERROR(VLOOKUP(I99,'Base de Monedas'!A:B,2,0),"") -> 
A100: (incluir otras entidades) | D100: =IFERROR(VLOOKUP(C100,'Base de Monedas'!A:B,2,0),"") ->  | J100: =IFERROR(VLOOKUP(I100,'Base de Monedas'!A:B,2,0),"") -> 
A101: Deudas bursátiles | D101: =IFERROR(VLOOKUP(C101,'Base de Monedas'!A:B,2,0),"") ->  | J101: =IFERROR(VLOOKUP(I101,'Base de Monedas'!A:B,2,0),"") -> 
A102: (Incluir programas de forma individual) | D102: =IFERROR(VLOOKUP(C102,'Base de Monedas'!A:B,2,0),"") ->  | J102: =IFERROR(VLOOKUP(I102,'Base de Monedas'!A:B,2,0),"") -> 
A103: Intereses préstamos entidades financieras a pagar | D103: =IFERROR(VLOOKUP(C103,'Base de Monedas'!A:B,2,0),"") ->  | J103: =IFERROR(VLOOKUP(I103,'Base de Monedas'!A:B,2,0),"") -> 
A104: Intereses a pagar | D104: =IFERROR(VLOOKUP(C104,'Base de Monedas'!A:B,2,0),"") ->  | J104: =IFERROR(VLOOKUP(I104,'Base de Monedas'!A:B,2,0),"") -> 
A105: (-) Intereses a Devengar
A106: Intereses deudas bursátiles a pagar | D106: =IFERROR(VLOOKUP(C106,'Base de Monedas'!A:B,2,0),"") ->  | J106: =IFERROR(VLOOKUP(I106,'Base de Monedas'!A:B,2,0),"") -> 
A107: Intereses a pagar | D107: =IFERROR(VLOOKUP(C107,'Base de Monedas'!A:B,2,0),"") ->  | J107: =IFERROR(VLOOKUP(I107,'Base de Monedas'!A:B,2,0),"") -> 
A108: (-) Intereses a Devengar | D108: =IFERROR(VLOOKUP(C108,'Base de Monedas'!A:B,2,0),"") -> 
A109: Total | D109: =IFERROR(VLOOKUP(C109,'Base de Monedas'!A:B,2,0),"") ->  | E109: =SUM($E$86:E108) -> 9209501.238 | J109: =IFERROR(VLOOKUP(I109,'Base de Monedas'!A:B,2,0),"") ->  | K109: =SUM($K$86:K108) -> 4337508.877
J110: =IFERROR(VLOOKUP(I110,'Base de Monedas'!H:I,2,0),"") -> 

Sheet Nota 15
A1: =Indice!C1 -> BIEDERMANN PUBLICIDAD S.A. | D1: BG
A5: NOTA 15 – PORCION CORRIENTE DE LA DEUDA A LARGO PLAZO
B7: En miles de guaranies
A8: Porción corriente de la deuda a largo plazo | B8: =IFERROR(IF(Indice!B6="","2XX2",YEAR(Indice!B6)),"2XX2") -> 2020 | C8: =IFERROR(YEAR(Indice!B6-366),"2XX1") -> 2019
A9: Cuentas por pagar comerciales | C9: 0
A10: Préstamos bancarios | B10: ='Nota 14'!E13+'Nota 14'!E17+'Nota 14'!E26+'Nota 14'!E34+'Nota 14'!E38 -> 2795255.867 | C10: ='Nota 14'!K13+'Nota 14'!K51+'Nota 14'!K61 -> 3307678.893
A11: Bonos bursátiles | B11: 0 | C11: ='Nota 14'!K67 -> 499427.943
A12: Intereses bancarios a pagar | B12: 0 | C12: 0
A13: Intereses bursatiles a pagar | B13: 0 | C13: 0
A14: (nuevas cuentas a incluir) | B14: 0 | C14: 0
A15: Total general | B15: =SUM($B$9:B14) -> 2795255.867 | C15: =SUM($C$9:C14) -> 3807106.836

Sheet Nota 16
A1: =Indice!C1 -> BIEDERMANN PUBLICIDAD S.A. | F1: BG
A4: NOTA 16 – REMUNERACIONES Y CARGAS SOCIALES A PAGAR
B6: En miles de guaranies
A7: Remuneraciones y cargas sociales a pagar | B7: =IFERROR(IF(Indice!B6="","2XX2",YEAR(Indice!B6)),"2XX2") -> 2020 | C7: =IFERROR(YEAR(Indice!B6-366),"2XX1") -> 2019
A8: Sueldo y otras remuneraciones a pagar | B8: 0 | C8: 0
A9: Aportes y retenciones a pagar | B9: 135723.825 | C9: 65621.221
A10: Remuneraciones al personal superior a pagar | B10: 0 | C10: 0
A11: (Indicar otras cuentas)
A12: Total | B12: =SUM($B$8:B11) -> 135723.825 | C12: =SUM($C$8:C11) -> 65621.221

Sheet Nota 17
A1: =Indice!C1 -> BIEDERMANN PUBLICIDAD S.A. | G1: BG
A5: NOTA 17 – IMPUESTOS A PAGAR
B7: En miles de guaranies
A8: Impuestos a pagar | B8: =IFERROR(IF(Indice!B6="","2XX2",YEAR(Indice!B6)),"2XX2") -> 2020 | C8: =IFERROR(YEAR(Indice!B6-366),"2XX1") -> 2019
A9: Impuesto a la renta a pagar | B9: 180218.409 | C9: 389785.737
A10: Otros impuestos a pagar | B10: 0 | C10: 0
A11: Impuesto al Valor Agregado 10% | B11: 0 | C11: 30235.635
A12: Total | B12: =SUM($B$9:B11) -> 180218.409 | C12: =SUM($C$9:C11) -> 420021.372

Sheet Nota 18
A1: =Indice!C1 -> BIEDERMANN PUBLICIDAD S.A. | D1: BG
A4: NOTA 18 - PROVISIONES
B6: En miles de guaranies
A7: Provisiones | B7: =IFERROR(IF(Indice!B6="","2XX2",YEAR(Indice!B6)),"2XX2") -> 2020 | C7: =IFERROR(YEAR(Indice!B6-366),"2XX1") -> 2019
A9: Alquileres a Pagar | B9: 0 | C9: 0
A10: Servicios Basicos a Pagar | B10: 0 | C10: 0
A11: Honorarios Profesionales a Pagar | B11: 0 | C11: 0
A12: Provisiones de Costos | B12: 879076.542 | C12: 1249831.541
A13: Total | B13: =SUM($B$9:B12) -> 879076.542 | C13: =SUM($C$9:C12) -> 1249831.541

Sheet Nota 19
A1: =Indice!C1 -> BIEDERMANN PUBLICIDAD S.A. | D1: BG
A3: NOTA 19 – OTROS PASIVOS CORRIENTES y NO CORRIENTES
A4: En miles de guaranies
A6: Corrientes | B6: =IFERROR(IF(Indice!B6="","2XX2",YEAR(Indice!B6)),"2XX2") -> 2020 | C6: =IFERROR(YEAR(Indice!B6-366),"2XX1") -> 2019 | E6: No Corrientes | F6: =IFERROR(IF(Indice!B6="","2XX2",YEAR(Indice!B6)),"2XX2") -> 2020 | G6: =IFERROR(YEAR(Indice!B6-366),"2XX1") -> 2019
A7: Retencion de IVA a pagar | B7: 51856.92 | C7: 75418.095 | E7: Retencion de IVA a pagar | F7: 0 | G7: 0
A8: Retencion Impuesto a la renta a Pagar | B8: 3689.978 | C8: 19927.113 | E8: Retencion Impuesto a la renta a Pagar | F8: 0 | G8: 0
A9: Impuestos diferidos | B9: 0 | C9: 0 | E9: Impuestos diferidos | F9: 0 | G9: 0
A10: Otros ingresos diferidos (detallar cuenta) | B10: 0 | C10: 0 | E10: Otros ingresos diferidos | F10: 0 | G10: 0
A11: Otros Pasivos con Entidades relacionadas | B11: 0 | C11: 0 | E11: Otros Pasivos con Entidades relacionadas | F11: 0 | G11: 0
A12: Previsiones para contingencias/Indemnizaciones y despidos | B12: 0 | C12: 0 | E12: Previsiones para contingencias/Indemnizaciones y despidos | F12: 0 | G12: 0
A13: (nuevas cuentas a incluir) | E13: (nuevas cuentas a incluir)
A14: Total | B14: =SUM(B7:B13) -> 55546.898 | C14: =SUM(C7:C13) -> 95345.208 | E14: Total | F14: =SUM(F7:F13) -> 0 | G14: =SUM(G7:G13) -> 0

Sheet Nota 20
A1: =Indice!C1 -> BIEDERMANN PUBLICIDAD S.A. | D1: BG
A3: En miles de guaranies
A4: NOTA 20 – CAPITAL INTEGRADO
A6: Fecha | B6: =IFERROR(IF(Indice!B6="","2XX2",YEAR(Indice!B6)),"2XX2") -> 2020 | C6: =IFERROR(YEAR(Indice!B6-366),"2XX1") -> 2019
A7: Monto Capital Social | B7: 10000000 | C7: 10000000
A8: Monto Capital Integrado | B8: 10000000 | C8: 10000000
A9: Cantidad de Acciones | B9: 1000 | C9: 1000
A10: Valor Nominal de Acciones | B10: 10000 | C10: 10000
A11: Total | B11: =+B8 -> 10000000 | C11: =+C8 -> 10000000

Sheet Nota 21
A1: =Indice!C1 -> BIEDERMANN PUBLICIDAD S.A. | F1: BG
A4: NOTA 21 – RESERVAS
B6: En miles de guaranies
B7: =IFERROR(IF(Indice!B6="","2XX2",YEAR(Indice!B6)),"2XX2") -> 2020 | C7: =IFERROR(YEAR(Indice!B6-366),"2XX1") -> 2019
A8: a Reserva de revalúo | B8: =EVPN!H32 -> 2222952.601 | C8: 2222952.601
A12: b Reserva legal | B12: =EVPN!L32 -> 616954.318 | C12: 609871.175
A16: c Reservas revaluo técnico | B16: =EVPN!J32 -> 3847456.99 | C16: 0
A20: d Reservas facultativas | B20: =+SUM(B$21:$B26) -> -1157712.992 | C20: =+SUM($C$21:C26) -> -1160980.556
A21: d.1. (Reserva Inversión en Otras Empresas) | B21: =EVPN!N32 -> -1157712.992 | C21: -1160980.556
A22: d.2. (nuevas cuentas a incluir)

Sheet Nota 22
A1: =Indice!C1 -> BIEDERMANN PUBLICIDAD S.A. | F1: BG
A4: NOTA 22 – DIFERENCIA TRANSITORIA POR CONVERSION
B5: NO APLICABLE
B6: En miles de guaranies
B7: =IFERROR(IF(Indice!B6="","2XX2",YEAR(Indice!B6)),"2XX2") -> 2020 | C7: =+IFERROR(YEAR(Indice!B6-366),"2XX1") -> 2019
A8: Diferencia transitoria por conversión | B8: 0 | C8: 0

Sheet Nota 23
A1: =Indice!C1 -> BIEDERMANN PUBLICIDAD S.A. | F1: BG
A4: NOTA 23 – RESULTADOS ACUMULADOS
B6: En miles de guaranies
B7: =IFERROR(IF(Indice!B6="","2XX2",YEAR(Indice!B6)),"2XX2") -> 2020 | C7: =+IFERROR(YEAR(Indice!B6-366),"2XX1") -> 2019
A8: Resultado de ejercicios anteriores
A9: Resultado del ejercicio actual | B9: 134579.709 | C9: 417553.69
A10: Totales | B10: =SUM($B$8:B9) -> 134579.709 | C10: =SUM($C$8:C9) -> 417553.69

Sheet Nota 24
A1: =Indice!C1 -> BIEDERMANN PUBLICIDAD S.A. | F1: BG
A4: NOTA 24 – INTERES MINORITARIO
B5: NO APLICABLE
B6: En miles de guaranies
B7: =IFERROR(IF(Indice!B6="","2XX2",YEAR(Indice!B6)),"2XX2") -> 2020 | C7: =+IFERROR(YEAR(Indice!B6-366),"2XX1") -> 2019
A8: Interes Minoritario | B8: 0 | C8: 0

Sheet Nota 25
A1: =Indice!C1 -> BIEDERMANN PUBLICIDAD S.A. | E1: ER
A5: NOTA 25 – VENTAS
B8: En miles de guaranies
B9: =IFERROR(IF(Indice!B6="","2XX2",YEAR(Indice!B6)),"2XX2") -> 2020 | C9: =+IFERROR(YEAR(Indice!B6-366),"2XX1") -> 2019
A10: Ventas
A11: Ventas linea de negocio 1 - Actividades publicitarias
A12: Local
A13: Contado
A14: Crédito | B14: 22456749.21 | C14: 34309380.16
A15: Exterior
A16: Contado
A17: Crédito
A18: Ventas linea de negocio 2
A19: Local
A20: Contado
A21: Crédito
A22: Exterior
A23: Contado
A24: Crédito
A25: (nuevas lineas de negocio a incluir)
A26: Total | B26: =SUM($B$11:B24) -> 22456749.21 | C26: =SUM($C$11:C24) -> 34309380.16

Sheet Nota 26
A1: =Indice!C1 -> BIEDERMANN PUBLICIDAD S.A. | E1: ER
A5: NOTA 26 - COSTO DE VENTAS
B8: Miles de guaraníes
A9: Costo de ventas | B9: =IFERROR(IF(Indice!B6="","2XX2",YEAR(Indice!B6)),"2XX2") -> 2020 | C9: =+IFERROR(YEAR(Indice!B6-366),"2XX1") -> 2019
A10: Linea de negocio 1 - Actividades publicitarias | B10: 11774794.05 | C10: 19503312.63
A11: Existencia inicial del inventario
A12: + Compra de bienes y servicios
A13: + Costo de producción
A14: - Existencia final de inventario
A15: Linea de negocio 2
A16: Existencia inicial del inventario
A17: + Compra de bienes y servicios
A18: + Costo de producción
A19: - Existencia final de inventario
A20: (nuevas lineas de negocio a incluir)
A21: Total costo de ventas | B21: =SUM($B$10:B20) -> 11774794.05 | C21: =SUM($C$10:C20) -> 19503312.63

Sheet Nota 27
A1: =Indice!C1 -> BIEDERMANN PUBLICIDAD S.A. | G1: ER
A5: NOTA 27 - GASTOS
A6: (Esta nota deberá ser incluida cuando en el estado de resultados se haga mención a una cuenta de carácter general o cuyo nombre no permita una adecuada identificación de la naturaleza del gasto y su importe sea significativo)
A8: El rubro está compuesto de la siguiente forma:
A10: Miles de guaraníes
C11: =IFERROR(IF(Indice!B6="","2XX2",YEAR(Indice!B6)),"2XX2") -> 2020 | F11: =+IFERROR(YEAR(Indice!B6-366),"2XX1") -> 2019
B12: Gastos de Ventas | C12: Gastos Administrativos | D12: Total | E12: Gastos de Ventas | F12: Gastos Administrativos | G12: Total
A13: Movilidad y viáticos | B13: =34446.344+2517.576+16424.335+2684.346 -> 56072.601 | C13: 0 | D13: =+C13+B13 -> 56072.601 | E13: =4762.422+33483.516+46768.994+10762.302 -> 95777.234 | F13: 0 | G13: =+F13+E13 -> 95777.234
A14: Gastos de alquiler | B14: 0 | C14: =492824.058+246034.003 -> 738858.061 | D14: =+C14+B14 -> 738858.061 | E14: 0 | F14: =652823.594+115250.336 -> 768073.93 | G14: =+F14+E14 -> 768073.93
A15: Computación y redes | B15: 51326.67 | C15: 0 | D15: =+C15+B15 -> 51326.67 | E15: 82390.699 | F15: 0 | G15: =+F15+E15 -> 82390.699
A16: Gastos por servicios básicos | B16: =81156.671+77448.578 -> 158605.249 | C16: 0 | D16: 158605.249 | E16: =87612.752+72934.568 -> 160547.32 | G16: 160547.32
A17: Honorarios profesionales y asesoramiento | B17: 0 | C17: 150498.647 | D17: 150498.647 | E17: 0 | F17: =694561.242 -> 694561.242 | G17: 694561.242
A18: Honorarios por Servicios | B18: =422746.071+6000 -> 428746.071 | C18: 0 | D18: 428746.071 | E18: =798326.409+2000 -> 800326.409 | G18: 800326.409
A19: Investigación de mercado | B19: 0 | C19: 285003.669 | D19: 285003.669 | E19: 0 | F19: 571890.312 | G19: 571890.312
A20: Impuestos y tasas | B20: 0 | C20: 61718.6 | D20: 61718.6 | E20: 0 | F20: 109361.137 | G20: 109361.137
A21: Gastos de reparación y mantenimiento | B21: 0 | C21: =11010.227+96791.369+8969.672 -> 116771.268 | D21: 116771.268 | E21: 0 | F21: =25535.095+10902.058+191774.951 -> 228212.104 | G21: 228212.104
A22: Gastos del personal y capacitación | B22: 156407.706 | C22: 0 | D22: 156407.706 | E22: 185027.688 | F22: 0 | G22: 185027.688
A23: Seguros pagados | B23: 0 | C23: 113634.506 | D23: 113634.506 | E23: 0 | F23: 167544.229 | G23: 167544.229
A24: Otros gastos de operación | B24: 0 | C24: =50345.359+6797.804+20488.848 -> 77632.011 | D24: 77632.011 | E24: 0 | F24: =160453.182+27807.552 -> 188260.734 | G24: 188260.734
A25: Remuneraciones de administradores, directores, síndicos y consejo de vigilancia | B25: 0 | C25: =1200000+65100 -> 1265100 | D25: 1265100 | E25: 0 | F25: =1299999.996+84000 -> 1383999.996 | G25: 1383999.996
A26: Sueldos y Jornales | B26: 0 | C26: =604217.379+31631.822 -> 635849.201 | D26: 635849.201 | E26: 0 | F26: =942648.733+659.341 -> 943308.074 | G26: 943308.074
A27: Contribuciones Sociales | B27: 0 | C27: 108932.042 | D27: 108932.042 | E27: 0 | F27: =155558.334+9569.48+80694.061+11508.49 -> 257330.365 | G27: 257330.365
A28: Regalías y Honorarios por servicios técnicos | B28: 0 | C28: 0 | D28: 0 | E28: 0 | G28: 0
A29: Gastos de Publicidad y Propaganda | B29: 0 | C29: 185.454 | D29: 185.454 | E29: =8321.454+6333.023 -> 14654.477 | F29: 0 | G29: 14654.477
A30: Intereses, multas y recargos impositivos | B30: 0 | C30: 43422.144 | D30: 43422.144 | E30: 0 | F30: 39669.472 | G30: 39669.472
A31: Intereses a bancos e instituciones financieras | B31: 0 | C31: =5045425.79+234335.173 -> 5279760.963 | D31: 5279760.963 | E31: 0 | F31: =4313807.778+210748.978 -> 4524556.756 | G31: 4524556.756
A32: Depreciación bienes de uso | B32: 0 | C32: 1036855.633 | D32: 1036855.633 | E32: 0 | F32: 1169335.636 | G32: 1169335.636
A33: Gastos no deducibles | B33: 0 | C33: 45464.943 | D33: 45464.943 | E33: 0 | F33: 627294.662 | G33: 627294.662
A34: Amortización activos intangibles | B34: 0 | C34: 132065.736 | D34: 132065.736 | E34: 0 | F34: 132065.736 | G34: 132065.736
A35: Previsiones | B35: 0 | C35: 0 | D35: 0 | E35: 0 | F35: 758046.514 | G35: 758046.514
A36: Gastos de Representación | B36: 0 | C36: =18833.182+8775.51+93834.708 -> 121443.4 | D36: 121443.4 | E36: =373060.396+19398.455 -> 392458.851 | F36: 0 | G36: 392458.851
A37: Gastos Generales | B37: 0 | C37: =56816.804+211715.471 -> 268532.275 | D37: 268532.275 | E37: 721132.591 | F37: 0 | G37: 721132.591
A38: Reserva Legal | B38: 0 | C38: 7083.143 | D38: 7083.143 | E38: 0 | F38: 21976.51 | G38: 21976.51
A39: Iva Costo | B39: 0 | C39: 14671.02 | D39: 14671.02 | E39: 0 | F39: 83624.167 | G39: 83624.167
A40: (nuevas cuentas a incluir) | B40: 0 | C40: 0 | D40: 0 | E40: 0 | F40: 0 | G40: 0
A41: Total | B41: =+SUM($B$13:B40) -> 851158.297 | C41: =+SUM($C$13:C40) -> 10503482.72 | D41: =+SUM($D$13:D40) -> 11354641.01 | E41: =+SUM($E$13:E40) -> 2452315.269 | F41: =+SUM($F$13:F40) -> 12669111.58 | G41: =+SUM($G$13:G40) -> 15121426.84

Sheet Nota 28
A1: =Indice!C1 -> BIEDERMANN PUBLICIDAD S.A. | E1: ER
A4: Nota 28 - Otros Ingresos y gastos operativos
A6: Miles de guaraníes
A8: Otros ingresos | B8: =IFERROR(IF(Indice!B6="","2XX2",YEAR(Indice!B6)),"2XX2") -> 2020 | C8: =+IFERROR(YEAR(Indice!B6-366),"2XX1") -> 2019 | E8: Otros gastos | F8: =IFERROR(IF(Indice!B6="","2XX2",YEAR(Indice!B6)),"2XX2") -> 2020 | G8: =+IFERROR(YEAR(Indice!B6-366),"2XX1") -> 2019
A9: Intereses cobrados | B9: 805367.565 | C9: 473425.982 | E9: Venta Bienes Act.Fijo | F9: 0 | G9: 34880.631
A10: Recupero de Gastos | B10: 154556.426 | C10: 730196.293 | E10: Diferencia de Cambios | F10: 43156.756 | G10: 23602.407
A11: Venta Bienes Act.Fijo | B11: 70716.731 | C11: 0
A16: Total | B16: =SUM($B$9:B15) -> 1030640.722 | C16: =SUM($C$9:C15) -> 1203622.275 | E16: Total | F16: =SUM($F$9:F15) -> 43156.756 | G16: =SUM($G$9:G15) -> 58483.038

Sheet Nota 29
A1: =Indice!C1 -> BIEDERMANN PUBLICIDAD S.A. | E1: ER
A5: NOTA 29 - INGRESOS Y GASTOS FINANCIEROS NETOS
A6: Miles de guaraníes
D7: NO APLICABLE
A8: Ingresos Financieros netos | B8: =IFERROR(IF(Indice!B6="","2XX2",YEAR(Indice!B6)),"2XX2") -> 2020 | C8: =+IFERROR(YEAR(Indice!B6-366),"2XX1") -> 2019 | E8: Gastos Financieros netos | F8: =IFERROR(IF(Indice!B6="","2XX2",YEAR(Indice!B6)),"2XX2") -> 2020 | G8: =+IFERROR(YEAR(Indice!B6-366),"2XX1") -> 2019
A9: (Detallar cuentas) | E9: (Detallar cuentas)
A14: Total ingresos financieros | B14: =SUM($B9:B13) -> 0 | C14: =SUM($C9:C13) -> 0 | E14: Total gastos financieros | F14: =SUM($F9:F13) -> 0 | G14: =SUM($G9:G13) -> 0

Sheet Nota 30
A1: =Indice!C1 -> BIEDERMANN PUBLICIDAD S.A. | E1: ER
A4: Nota 30 - Resultado de inversiones en asociadas
A5: Miles de guaraníes
D7: NO APLICABLE
A8: Resultado de inversiones en asociadas | B8: =IFERROR(IF(Indice!B6="","2XX2",YEAR(Indice!B6)),"2XX2") -> 2020 | C8: =+IFERROR(YEAR(Indice!B6-366),"2XX1") -> 2019
A9: (Detallar cuenta)
A16: Total | B16: =SUM($B9:B15) -> 0 | C16: =SUM($C9:C15) -> 0

Sheet Nota 31
A1: =Indice!C1 -> BIEDERMANN PUBLICIDAD S.A. | E1: ER
A4: Nota 31 - Resultado participación minoritaria
A5: Miles de guaraníes
D6: NO APLICABLE
A8: Resultado participación minoritaria | B8: =IFERROR(IF(Indice!B6="","2XX2",YEAR(Indice!B6)),"2XX2") -> 2020 | C8: =+IFERROR(YEAR(Indice!B6-366),"2XX1") -> 2019
A9: (Detallar cuenta)
A16: Total | B16: =SUM($B9:B15) -> 0 | C16: =SUM($C9:C15) -> 0

Sheet Nota 32
A1: =Indice!C1 -> BIEDERMANN PUBLICIDAD S.A. | E1: ER
A4: Nota 32 - IMPUESTO A LA RENTA
A5: En miles de guaraníes
B7: =IFERROR(IF(Indice!B6="","2XX2",YEAR(Indice!B6)),"2XX2") -> 2020 | C7: =+IFERROR(YEAR(Indice!B6-366),"2XX1") -> 2019
A8: Impuesto a la renta | B8: 180218.409 | C8: 412226.239
A14: Total | B14: =SUM($B8:B13) -> 180218.409 | C14: =SUM($C8:C13) -> 412226.239

Sheet Nota 33
A1: =Indice!C1 -> BIEDERMANN PUBLICIDAD S.A. | E1: ER
A4: Nota 33 - Resultado extraordinario neto de impuesto a la renta
A5: En miles de guaraníes
B6: NO APLICABLE
B7: =IFERROR(IF(Indice!B6="","2XX2",YEAR(Indice!B6)),"2XX2") -> 2020 | C7: =+IFERROR(YEAR(Indice!B6-366),"2XX1") -> 2019
A8: Conceptos
A9: (Detallar)
A15: Total | B15: =SUM($B8:B14) -> 0 | C15: =SUM($C8:C14) -> 0

Sheet Nota 34
A1: =Indice!C1 -> BIEDERMANN PUBLICIDAD S.A. | E1: ER
A4: Nota 34 - Resultado sobre actividades discontinuadas neto de impuesto a la renta
A5: En miles de guaraníes
B6: NO APLICABLE
A7: Resultado sobre actividades discontinuadas neto de impuesto a la renta | B7: =IFERROR(IF(Indice!B6="","2XX2",YEAR(Indice!B6)),"2XX2") -> 2020 | C7: =+IFERROR(YEAR(Indice!B6-366),"2XX1") -> 2019
A9: (nueva cuenta a incluir) | B9: 0 | C9: 0
A10: Subtotal | B10: 0 | C10: 0
A11: - Impuesto a la renta | B11: 0 | C11: 0
A12: Total | B12: =SUM($B8:B11) -> 0 | C12: =SUM($C8:C11) -> 0

Sheet Nota 35
A1: =Indice!C1 -> BIEDERMANN PUBLICIDAD S.A. | E1: ER
A4: NOTA 35- UTILIDAD (PÉRDIDA) NETA DEL AÑO Y POR ACCION ORDINARIA
A5: La Sociedad calcula la utilidad (pérdida) neta por acción sobre la base de la utilidad (pérdida) del año y … acciones ordinarias (aclarar las características de las acciones) de valor nominal G/ …cada una con derecho a … voto por acción (aclarar el derecho de voto que tiene cada tipo de acción).
B7: =IFERROR(IF(Indice!B6="","2XX2",YEAR(Indice!B6)),"2XX2") -> 2020 | C7: =+IFERROR(YEAR(Indice!B6-366),"2XX1") -> 2019
A8: Cantidad de Acciones Ordinarias en Circulación | B8: 1000 | C8: 1000
A9: Utilidad Neta | B9: =ER!C31 -> 134579.709 | C9: =ER!D31 -> 417553.69
A10: Utilidad Neta por Acción Ordinaria | B10: =IFERROR(B9/B8,0) -> 134.579709 | C10: =IFERROR(C9/C8,0) -> 417.55369

Sheet Nota 36
A1: =Indice!C1 -> BIEDERMANN PUBLICIDAD S.A. | E1: Indice
A3: Miles de guaraníes
A4: NOTA 36 - ACTIVOS GRAVADOS
A6: Los siguientes bienes de propiedad de la Sociedad han sido hipotecados y prendados en garantía de obligaciones financieras.
A8: =IFERROR("Al "&DAY(Indice!B6)&" de "&VLOOKUP(MONTH(Indice!B6),Indice!S:T,2,0)&" de "&YEAR(Indice!B6-366),"Al dia... de mes… de año 2XX1…") -> Al 31 de Diciembre de 2019
A9: Tipo de Activo | B9: Datos del activo gravado | C9: Tipo de garantía | D9: Importe (indicar moneda) | E9: A favor de
A10: Inmueble | B10: Terreno y edif.en cdad de Fdo.de la Mora | C10: HIPOTECARIA | D10: 4700000 | E10: BANCO BASA S.A.
A15: =IFERROR("Al "&DAY(Indice!B6)&" de "&VLOOKUP(MONTH(Indice!B6),Indice!S:T,2,0)&" de "&YEAR(Indice!B6-1),"Al dia... de mes… de año 2XX2…") -> Al 31 de Diciembre de 2020
A16: Tipo de Activo | B16: Datos del activo gravado | C16: Tipo de garantía | D16: Importe (indicar moneda) | E16: A favor de
A17: Inmueble | B17: Terreno y edif.en cdad de Fdo.de la Mora | C17: HIPOTECARIA | D17: 5200000 | E17: BANCO BASA S.A.

Sheet Nota 37
A1: =Indice!C1 -> BIEDERMANN PUBLICIDAD S.A. | E1: Indice
C3: NO APLICABLE
A4: NOTA 37 - CONTINGENCIAS Y COMPROMISOS
A5: (Esta nota debería incluir un breve detalle de contratos con terceros, vigente a la fecha de cierre del ejercicio, cuyo incumplimiento o cláusula específica podrían generar obligaciones contingentes para el cliente).
A6: =IFERROR("Los principales contratos suscriptos por la Sociedad, vigentes al "&DAY(Indice!B6)&" de "&VLOOKUP(MONTH(Indice!B6),Indice!S:T,2,0)&" de "&YEAR(Indice!B6-1)&" son:","Los principales contratos suscriptos por la Sociedad, vigentes al … de … 20X2 son:") -> Los principales contratos suscriptos por la Sociedad, vigentes al 31 de Diciembre de 2020 son:
A7: a)
A8: b)
A11: =IFERROR("Al "&DAY(Indice!B6)&" de "&VLOOKUP(MONTH(Indice!B6),Indice!S:T,2,0)&" de "&YEAR(Indice!B6-1)&" no existen situaciones contingentes, ni reclamos que pudieran resultar en la generación de obligaciones para la Sociedad adicionales a las que se presentan en estos estados financieros.","Al … de …………... 20X2 no existen situaciones contingentes, ni reclamos que pudieran resultar en la generación de obligaciones para la Sociedad adicionales a las que se presentan en estos estados financieros.") -> Al 31 de Diciembre de 2020 no existen situaciones contingentes, ni reclamos que pudieran resultar en la generación de obligaciones para la Sociedad adicionales a las que se presentan en estos estados financieros.
A15: Obs.: Esta información debe estar ajustada a lo requerido por la Norma de Información Financiera N° 5 Contingencias y sucesos que ocurren después de la fecha del balance.

Sheet Nota 38
A1: =Indice!C1 -> BIEDERMANN PUBLICIDAD S.A. | D1: Índice
A4: NOTA 38 - IMPUESTO DIFERIDO
A5: En miles de guaraníes | B5: NO APLICABLE
A6: Al … de …........... 20X2 la Sociedad constituyó una provisión para impuesto a la renta de Guaraníes …... (Al … de …...............20X1: Guaraníes …....) / (La Sociedad no ha constituido provisión para impuesto a la renta, debido a que a esa fecha la misma generó renta imponible que fue compensada con quebrantos impositivos acumulados a esa fecha).
A7: La Sociedad contabiliza el impuesto a la renta por el método de lo diferido, método del pasivo. El mencionado método establece la determinación de activos o pasivos impositivos diferidos netos basados en las diferencias temporales y temporarias, con cargo a la línea Impuesto a la renta del Estado de resultados.
A9: El siguiente cuadro detalla las diferencias temporales a la tasa del impuesto a los efectos de determinación del impuesto diferido:
B11: =IFERROR(IF(Indice!B6="","2XX2",YEAR(Indice!B6)),"2XX2") -> 2020 | C11: =+IFERROR(YEAR(Indice!B6-366),"2XX1") -> 2019
A12: Activos y pasivos impositivos diferidos:
A13: Caja y Bancos
A14: Inversiones
A15: Previsión para deudores incobrables
A16: Bienes de uso
A17: Activos intangibles
A18: Previsión del pasivo
A19: Deudas comerciales y bancarias
A20: Bienes de cambio
A21: Sub - total
A22: Previsión para impuestos diferidos netos
A23: Total activo/pasivo impositivo diferido neto antes de quebrantos
A24: Quebranto impositivo
A25: Total

Sheet Nota 39
A1: =Indice!C1 -> BIEDERMANN PUBLICIDAD S.A. | E1: Indice
A5: NOTA 39 - HECHOS POSTERIORES
A7: Entre la fecha de cierre del ejercicio y la fecha de preparación de estos estados financieros, no han ocurrido hechos significativos de carácter financiero o de otra índole que afecten la situación patrimonial o financiera o los resultados de la Sociedad al 31 de diciembre de 2020.
A8: Sin embargo, no podemos dejar de mencionar que de acuerdo a la OMS (Organización Mundial de la Salud) continua el estado de pandemia mundial a raíz del COVID-19 (Coronavirus), hecho que afecto el volumen de nuestras actividades comerciales, y que forzó ante la difícil situación a tomar medidas modificando parcialmente los contratos de trabajo y realizando una reducción salarial, manteniéndose vigentes e inalterables las demás cláusulas de los mismos.

Sheet Nota 40
A1: =Indice!C1 -> BIEDERMANN PUBLICIDAD S.A. | C1: Indice
A5: NOTA 40 - SALDOS Y TRANSACCIONES CON PARTES RELACIONADAS
A6: Miles de guaraníes
B10: =IFERROR(IF(Indice!B6="","2XX2",YEAR(Indice!B6)),"2XX2") -> 2020 | C10: =+IFERROR(YEAR(Indice!B6-366),"2XX1") -> 2019
A11: ACTIVO
A12: Inversiones temporales | B12: 2296000 | C12: 2296000
A13: Cuentas a cobrar comerciales | B13: 6105014.131 | C13: ='Nota 5'!D15 -> 5128060.46
A14: Otros créditos | B14: =1405732.675+3184503.893+2304688.814 -> 6894925.382 | C14: 5140978.327
A15: Total activo | B15: =SUM(B12:B14) -> 15295939.51 | C15: =SUM(C12:C14) -> 12565038.79
A16: PASIVO
A17: Cuentas por pagar comerciales | B17: 320093.318 | C17: 118332.895
A18: Préstamos a corto plazo | B18: 453302.461 | C18: 0
A19: Provisiones | B19: 0 | C19: 0
A20: Préstamos a largo plazo | B20: 0 | C20: 0
A21: Otros pasivos | B21: 0 | C21: 0
A22: Total pasivo | B22: =SUM(B17:B21) -> 773395.779 | C22: =SUM(C17:C21) -> 118332.895
B26: =IFERROR(IF(Indice!B6="","2XX2",YEAR(Indice!B6)),"2XX2") -> 2020 | C26: =+IFERROR(YEAR(Indice!B6-365),"2XX1") -> 2020
A27: Costo de ventas
A28: Compras a ….
A30: Gastos administrativos
A31: Honorarios por servicios
A32: Otros
A33: Gastos financieros
A34: Intereses pagados por préstamos

Sheet Base de Monedas
A1: PYG | B1: Guaraní | C1: Índice
A2: USD | B2: Dólar estadounidense
A3: EUR | B3: Euro
A4: AED | B4: Dírham de los Emiratos Árabes Unidos
A5: AFN | B5: Afgani
A6: ALL | B6: Lek
A7: AMD | B7: Dram armenio
A8: ANG | B8: Florín antillano neerlandés
A9: AOA | B9: Kwanza
A10: ARS | B10: Peso argentino
A11: AUD | B11: Dólar australiano
A12: AWG | B12: Florín arubeño
A13: AZN | B13: Manat azerbaiyano
A14: BAM | B14: Marco convertible
A15: BBD | B15: Dólar de Barbados
A16: BDT | B16: Taka
A17: BGN | B17: Lev búlgaro
A18: BHD | B18: Dinar bareiní
A19: BIF | B19: Franco de Burundi
A20: BMD | B20: Dólar bermudeño
A21: BND | B21: Dólar de Brunéi
A22: BOB | B22: Boliviano
A23: BOV | B23: MVDOL
A24: BRL | B24: Real brasileño
A25: BSD | B25: Dólar bahameño
A26: BTN | B26: Ngultrum
A27: BWP | B27: Pula
A28: BYN | B28: Rublo bielorruso
A29: BZD | B29: Dólar beliceño
A30: CAD | B30: Dólar canadiense
A31: CDF | B31: Franco congoleño
A32: CHE | B32: Euro WIR
A33: CHF | B33: Franco suizo
A34: CHW | B34: Franco WIR
A35: CLF | B35: Unidad de fomento
A36: CLP | B36: Peso chileno
A37: CNY | B37: Yuan chino
A38: COP | B38: Peso colombiano
A39: COU | B39: Unidad de valor real
A40: CRC | B40: Colón costarricense
A41: CUC | B41: Peso convertible
A42: CUP | B42: Peso cubano
A43: CVE | B43: Escudo caboverdiano
A44: CZK | B44: Corona checa
A45: DJF | B45: Franco yibutiano
A46: DKK | B46: Corona danesa
A47: DOP | B47: Peso dominicano
A48: DZD | B48: Dinar argelino
A49: EGP | B49: Libra egipcia
A50: ERN | B50: Nakfa
A51: ETB | B51: Birr etíope
A52: FJD | B52: Dólar fiyiano
A53: FKP | B53: Libra malvinense
A54: GBP | B54: Libra esterlina
A55: GEL | B55: Lari
A56: GHS | B56: Cedi ghanés
A57: GIP | B57: Libra de Gibraltar
A58: GMD | B58: Dalasi
A59: GNF | B59: Franco guineano
A60: GTQ | B60: Quetzal
A61: GYD | B61: Dólar guyanés
A62: HKD | B62: Dólar de Hong Kong
A63: HNL | B63: Lempira
A64: HRK | B64: Kuna
A65: HTG | B65: Gourde
A66: HUF | B66: Forinto
A67: IDR | B67: Rupia indonesia
A68: ILS | B68: Nuevo shéquel israelí
A69: INR | B69: Rupia india
A70: IQD | B70: Dinar iraquí
A71: IRR | B71: Rial iraní
A72: ISK | B72: Corona islandesa
A73: JMD | B73: Dólar jamaiquino
A74: JOD | B74: Dinar jordano
A75: JPY | B75: Yen
A76: KES | B76: Chelín keniano
A77: KGS | B77: Som
A78: KHR | B78: Riel
A79: KMF | B79: Franco comorense
A80: KPW | B80: Won norcoreano
A81: KRW | B81: Won
A82: KWD | B82: Dinar kuwaití
A83: KYD | B83: Dólar de las Islas Caimán
A84: KZT | B84: Tenge
A85: LAK | B85: Kip
A86: LBP | B86: Libra libanesa
A87: LKR | B87: Rupia de Sri Lanka
A88: LRD | B88: Dólar liberiano
A89: LSL | B89: Loti
A90: LYD | B90: Dinar libio
A91: MAD | B91: Dírham marroquí
A92: MDL | B92: Leu moldavo
A93: MGA | B93: Ariary malgache
A94: MKD | B94: Denar
A95: MMK | B95: Kyat
A96: MNT | B96: Tugrik
A97: MOP | B97: Pataca
A98: MRU | B98: Uguiya
A99: MUR | B99: Rupia de Mauricio
A100: MVR | B100: Rufiyaa
A101: MWK | B101: Kwacha
A102: MXN | B102: Peso mexicano
A103: MXV | B103: Unidad de Inversión (UDI) mexicana
A104: MYR | B104: Ringgit malayo
A105: MZN | B105: Metical mozambiqueño
A106: NAD | B106: Dólar namibio
A107: NGN | B107: Naira
A108: NIO | B108: Córdoba
A109: NOK | B109: Corona noruega
A110: NPR | B110: Rupia nepalí
A111: NZD | B111: Dólar neozelandés
A112: OMR | B112: Rial omaní
A113: PAB | B113: Balboa
A114: PEN | B114: Sol
A115: PGK | B115: Kina
A116: PHP | B116: Peso filipino
A117: PKR | B117: Rupia pakistaní
A118: PLN | B118: Złoty
A119: QAR | B119: Riyal qatarí
A120: RON | B120: Leu rumano
A121: RSD | B121: Dinar serbio
A122: RUB | B122: Rublo ruso
A123: RWF | B123: Franco ruandés
A124: SAR | B124: Riyal saudí
A125: SBD | B125: Dólar de las Islas Salomón
A126: SCR | B126: Rupia seychelense
A127: SDG | B127: Dinar sudanés
A128: SEK | B128: Corona sueca
A129: SGD | B129: Dólar de Singapur
A130: SHP | B130: Libra de Santa Elena
A131: SLL | B131: Leone
A132: SOS | B132: Chelín somalí
A133: SRD | B133: Dólar surinamés
A134: SSP | B134: Libra sursudanesa
A135: STN | B135: Dobra
A136: SVC | B136: Colon Salvadoreño
A137: SYP | B137: Libra siria
A138: SZL | B138: Lilangeni
A139: THB | B139: Baht
A140: TJS | B140: Somoni tayiko
A141: TMT | B141: Manat turcomano
A142: TND | B142: Dinar tunecino
A143: TOP | B143: Paʻanga
A144: TRY | B144: Lira turca
A145: TTD | B145: Dólar de Trinidad y Tobago
A146: TWD | B146: Nuevo dólar taiwanés
A147: TZS | B147: Chelín tanzano
A148: UAH | B148: Grivna
A149: UGX | B149: Chelín ugandés
A150: USN | B150: Dólar estadounidense (Siguiente día)
A151: UYI | B151: Peso en Unidades Indexadas (Uruguay)
A152: UYU | B152: Peso uruguayo
A153: UYW | B153: Unidad Previsional
A154: UZS | B154: Som uzbeko
A155: VES7​ | B155: Bolívar soberano
A156: VND | B156: Dong vietnamita
A157: VUV | B157: Vatu
A158: WST | B158: Tala
A159: XAF | B159: Franco CFA de África Central
A160: XAG | B160: Plata (una onza troy)
A161: XAU | B161: Oro (una onza troy)
A162: XBA | B162: Unidad compuesta europea (EURCO) (Unidad del mercados de bonos)
A163: XBB | B163: Unidad Monetaria europea (E.M.U.-6) (Unidad del mercado de bonos)
A164: XBC | B164: Unidad europea de cuenta 9 (E.U.A.-9) (Unidad del mercado de bonos)
A165: XBD | B165: Unidad europea de cuenta 17 (E.U.A.-17) (Unidad del mercado de bonos)
A166: XCD | B166: Dólar del Caribe Oriental
A167: XDR | B167: Derechos especiales de giro
A168: XOF | B168: Franco CFA de África Occidental
A169: XPD | B169: Paladio (una onza troy)
A170: XPF | B170: Franco CFP
A171: XPT | B171: Platino (una onza troy)
A172: XSU | B172: SUCRE
A173: XTS | B173: Reservado para pruebas
A174: XUA | B174: Unidad de cuenta BAD
A175: XXX | B175: Sin divisa
A176: YER | B176: Rial yemení
A177: ZAR | B177: Rand
A178: ZMW | B178: Kwacha zambiano
A179: ZWL | B179: Dólar zimbabuense
